Department family,Entity,Date,Expense type,Expense area,Supplier,Transaction number,Amount
Home Office,Home Office,01/09/2010,Grant,CPG - Crime & Policing Group,INDEPENDENT POLICE COMPLAINTS COMI,470674,"3,500,000.00"
Home Office,Home Office,01/09/2010,Grant,CPG - Crime & Policing Group,NORTH YORKSHIRE POLICE AUTHORITY (,51165RCM,"-35,238.48"
Home Office,Home Office,01/09/2010,Grant,CPG - Crime & Policing Group,CITY AND COUNTY OF SWANSEA 1 (G),54650RCM,"-78,965.96"
Home Office,Home Office,01/09/2010,Grant,CPG - Crime & Policing Group,LAMBETH PCT (G),478436,"417,141.54"
Home Office,Home Office,01/09/2010,Grant,CPG - Crime & Policing Group,HEART OF BIRMINGHAM TEACHING PCT (,478436,"1,341,636.89"
Home Office,Home Office,02/09/2010,Grant,CPG - Crime & Policing Group,AVON & SOMERSET POLICE AUTHORITY 1,453596,"9,309,651.00"
Home Office,Home Office,02/09/2010,Grant,CPG - Crime & Policing Group,BEDFORDSHIRE POLICE AUTHORITY 1 (G,453596,"3,571,296.00"
Home Office,Home Office,02/09/2010,Grant,CPG - Crime & Policing Group,CAMBRIDGESHIRE POLICE AUTHORITY 1,453596,"4,240,189.00"
Home Office,Home Office,02/09/2010,Grant,CPG - Crime & Policing Group,CHAMBERLAIN OF LONDON (G),453596,"1,807,384.00"
Home Office,Home Office,02/09/2010,Grant,CPG - Crime & Policing Group,CHESHIRE POLICE AUTHORITY 2 (G),453596,"5,581,556.00"
Home Office,Home Office,02/09/2010,Grant,CPG - Crime & Policing Group,CLEVELAND POLICE AUTHORITY 1 (G),453596,"4,107,078.00"
Home Office,Home Office,02/09/2010,Grant,CPG - Crime & Policing Group,CUMBRIA POLICE AUTHORITY 1 (G),453596,"2,784,812.00"
Home Office,Home Office,02/09/2010,Grant,CPG - Crime & Policing Group,DERBYSHIRE POLICE AUTHORITY 1 (G),453596,"5,573,861.00"
Home Office,Home Office,02/09/2010,Grant,CPG - Crime & Policing Group,DEVON & CORNWALL POLICE AUTHORITY,453596,"9,371,973.00"
Home Office,Home Office,02/09/2010,Grant,CPG - Crime & Policing Group,DORSET POLICE AUTHORITY 1 (G),453596,"3,492,024.00"
Home Office,Home Office,02/09/2010,Grant,CPG - Crime & Policing Group,DURHAM POLICE AUTHORITY 1 (G),453596,"3,796,422.00"
Home Office,Home Office,02/09/2010,Grant,CPG - Crime & Policing Group,DYFED POWYS POLICE AUTHORITY 1 (G),453596,"2,820,914.00"
Home Office,Home Office,02/09/2010,Grant,CPG - Crime & Policing Group,DYFED POWYS POLICE AUTHORITY 1 (G),411342,"5,784,906.00"
Home Office,Home Office,02/09/2010,Grant,CPG - Crime & Policing Group,ESSEX POLICE AUTHORITY (G),453596,"9,426,856.00"
Home Office,Home Office,02/09/2010,Grant,CPG - Crime & Policing Group,GLOUCESTERSHIRE POLICE AUTHORITY (,453596,"3,026,196.00"
Home Office,Home Office,02/09/2010,Grant,CPG - Crime & Policing Group,GREATER LONDON AUTHORITY (G),453596,"93,454,725.00"
Home Office,Home Office,02/09/2010,Grant,CPG - Crime & Policing Group,GREATER MANCHESTER POLICE AUTHORIT,453596,"20,179,915.00"
Home Office,Home Office,02/09/2010,Grant,CPG - Crime & Policing Group,GWENT POLICE AUTHORITY 1 (G),453596,"3,885,765.00"
Home Office,Home Office,02/09/2010,Grant,CPG - Crime & Policing Group,HAMPSHIRE POLICE AUTHORITY 1 (G),453596,"10,472,722.00"
Home Office,Home Office,02/09/2010,Grant,CPG - Crime & Policing Group,HERTFORDSHIRE POLICE AUTHORITY 1 (,453596,"6,525,387.00"
Home Office,Home Office,02/09/2010,Grant,CPG - Crime & Policing Group,HUMBERSIDE POLICE AUTHORITY 1 (G),453596,"5,800,959.00"
Home Office,Home Office,02/09/2010,Grant,CPG - Crime & Policing Group,KENT POLICE AUTHORITY 1 (G),453596,"9,891,864.00"
Home Office,Home Office,02/09/2010,Grant,CPG - Crime & Policing Group,LANCASHIRE POLICE AUTHORITY 1 (G),453596,"9,324,083.00"
Home Office,Home Office,02/09/2010,Grant,CPG - Crime & Policing Group,LEICESTERSHIRE POLICE AUTHORITY (G,453596,"5,636,757.00"
Home Office,Home Office,02/09/2010,Grant,CPG - Crime & Policing Group,LINCOLNSHIRE POLICE AUTHORITY 1 (G,453596,"3,535,554.00"
Home Office,Home Office,02/09/2010,Grant,CPG - Crime & Policing Group,MERSEYSIDE POLICE AUTHORITY 1 (G),453596,"11,310,724.00"
Home Office,Home Office,02/09/2010,Grant,CPG - Crime & Policing Group,NEW WEST MERCIA POLICE AUTHORITY (,453596,"5,975,708.00"
Home Office,Home Office,02/09/2010,Grant,CPG - Crime & Policing Group,NORFOLK POLICE AUTHORITY 1 (G),453596,"4,453,785.00"
Home Office,Home Office,02/09/2010,Grant,CPG - Crime & Policing Group,NORTH WALES POLICE AUTHORITY (G),453596,"3,880,835.00"
Home Office,Home Office,02/09/2010,Grant,CPG - Crime & Policing Group,NORTH YORKSHIRE POLICE AUTHORITY (,453596,"3,936,672.00"
Home Office,Home Office,02/09/2010,Grant,CPG - Crime & Policing Group,NORTHAMPTONSHIRE POLICE 1 (G),453596,"3,765,162.00"
Home Office,Home Office,02/09/2010,Grant,CPG - Crime & Policing Group,NORTHUMBRIA POLICE (G),453596,"9,285,752.00"
Home Office,Home Office,02/09/2010,Grant,CPG - Crime & Policing Group,NOTTINGHAMSHIRE POLICE AUTHORITY 2,453596,"6,605,626.00"
Home Office,Home Office,02/09/2010,Grant,CPG - Crime & Policing Group,SOUTH WALES POLICE AUTHORITY 1 (G),453596,"8,425,424.00"
Home Office,Home Office,02/09/2010,Grant,CPG - Crime & Policing Group,SOUTH YORKSHIRE POLICE AUTHORITY 1,453596,"8,777,081.00"
Home Office,Home Office,02/09/2010,Grant,CPG - Crime & Policing Group,STAFFORDSHIRE POLICE AUTHORITY (G),453596,"5,855,265.00"
Home Office,Home Office,02/09/2010,Grant,CPG - Crime & Policing Group,SUFFOLK POLICE AUTHORITY (G),453596,"3,646,757.00"
Home Office,Home Office,02/09/2010,Grant,CPG - Crime & Policing Group,SURREY POLICE AUTHORITY 1 (G),453596,"5,754,318.00"
Home Office,Home Office,02/09/2010,Grant,CPG - Crime & Policing Group,SUSSEX POLICE AUTHORITY 1 (G),453596,"8,620,882.00"
Home Office,Home Office,02/09/2010,Grant,CPG - Crime & Policing Group,THAMES VALLEY POLICE (G),453596,"12,593,917.00"
Home Office,Home Office,02/09/2010,Grant,CPG - Crime & Policing Group,WARWICKSHIRE POLICE AUTHORITY 1 (G,453596,"2,817,766.00"
Home Office,Home Office,02/09/2010,Grant,CPG - Crime & Policing Group,WEST MIDLANDS POLICE AUTHORITY 1 (,453596,"22,127,422.00"
Home Office,Home Office,02/09/2010,Grant,CPG - Crime & Policing Group,WEST YORKSHIRE POLICE (G),453596,"15,482,796.00"
Home Office,Home Office,02/09/2010,Grant,CPG - Crime & Policing Group,WILTSHIRE CONSTABULARY (G),453596,"3,371,577.00"
Home Office,Home Office,02/09/2010,Grant,CPG - Crime & Policing Group,COMMUNITIES & LOCAL GOVERNMENT (G),325574-7,"5,095,577.58"
Home Office,Home Office,02/09/2010,Grant,CPG - Crime & Policing Group,SOCA (G),467970,"28,000,000.00"
Home Office,Home Office,02/09/2010,Grant,CPG - Crime & Policing Group,COMMUNITIES & LOCAL GOVERNMENT (G),325574-29,"1,282,696.92"
Home Office,Home Office,02/09/2010,Grant,CPG - Crime & Policing Group,COMMUNITIES & LOCAL GOVERNMENT (G),325574-18,"58,666.67"
Home Office,Home Office,02/09/2010,"Science, Technical & Research.Social Research",CPG - Crime & Policing Group,NATIONAL CENTRE FOR SOCIAL RESEARCH,1797678,"32,500.00"
Home Office,Home Office,02/09/2010,ESTATES AND FACILITIES.ESTATES & FACILITIES,CPG - Crime & Policing Group,LAMBERT SMITH HAMPTON,1796598,"86,656.25"
Home Office,Home Office,03/09/2010,Management & Admin Serv.Corp & Bus Org Structure- PROG,CPG - Crime & Policing Group,LIVERPOOL JOHN MOORES  UNIVERSITY,1798416,"47,501.37"
Home Office,Home Office,03/09/2010,Management & Admin Serv.Corp & Bus Org Structure- PROG,CPG - Crime & Policing Group,LIVERPOOL JOHN MOORES  UNIVERSITY,1798415,"33,764.50"
Home Office,Home Office,05/09/2010,Grant,CPG - Crime & Policing Group,DESIGN COUNCIL (G),434068-5,"41,666.00"
Home Office,Home Office,06/09/2010,Grant,CPG - Crime & Policing Group,GWENT POLICE AUTHORITY 1 (G),411342,"999,994.00"
Home Office,Home Office,06/09/2010,Grant,CPG - Crime & Policing Group,NORTH WALES POLICE AUTHORITY (G),411342,"8,901,049.00"
Home Office,Home Office,06/09/2010,IT & Telecommunications.IT & Telecommunications,CPG - Crime & Policing Group,FUJITSU SERVICES (ALCEDO) LTD,1687698,"33,626.69"
Home Office,Home Office,06/09/2010,Professional & Admin Services.Seconded in Staff costs - PROG,CPG - Crime & Policing Group,CONWY COUNTY BOROUGH COUNCIL,1799190,"44,978.21"
Home Office,Home Office,09/09/2010,Law Enforcement & safety Equip.Security & control equipment,CPG - Crime & Policing Group,CT CENTRE (MOD) T/A DSTL,1755635,"131,322.70"
Home Office,Home Office,09/09/2010,Professional & Admin Services,CPG - Crime & Policing Group,COI COMMUNICATIONS,728366,"29,082.23"
Home Office,Home Office,10/09/2010,Grant,CPG - Crime & Policing Group,ISA (G),505762,"1,205,792.00"
Home Office,Home Office,10/09/2010,"Science, Technical & Research.Social Research",CPG - Crime & Policing Group,TNS-BMRB,1803188,"447,552.02"
Home Office,Home Office,10/09/2010,Management & Admin Serv,CPG - Crime & Policing Group,TREASURY SOLICITORS OFFICE,102848,"35,717.16"
Home Office,Home Office,13/09/2010,Grant,CPG - Crime & Policing Group,BROKEN RAINBOW (G),509652,"30,000.00"
Home Office,Home Office,13/09/2010,Grant,CPG - Crime & Policing Group,RESPECT (G),509652,"60,000.00"
Home Office,Home Office,13/09/2010,Grant,CPG - Crime & Policing Group,WOMENS AID (G),509652,"62,500.00"
Home Office,Home Office,13/09/2010,Grant,CPG - Crime & Policing Group,RAPE CRISIS ENGLAND AND WALES (G),509668,"37,500.00"
Home Office,Home Office,13/09/2010,Grant,CPG - Crime & Policing Group,CLINKS (G),509558,"250,000.00"
Home Office,Home Office,14/09/2010,Grant,CPG - Crime & Policing Group,CLEVELAND POLICE AUTHORITY 1 (G),509694,"128,062.86"
Home Office,Home Office,15/09/2010,Grant,CPG - Crime & Policing Group,SANDWELL PRIMARY CARE TRUST (G),512332,"25,000.00"
Home Office,Home Office,15/09/2010,Grant,CPG - Crime & Policing Group,BRISTOL CITY COUNCIL 1 (G),512332,"25,200.00"
Home Office,Home Office,16/09/2010,Professional & Admin Services.Business admin services - PROG,CPG - Crime & Policing Group,CATCH22,1808144,"48,129.66"
Home Office,Home Office,17/09/2010,Grant,CPG - Crime & Policing Group,NSPCC 1 (G),516888,"26,512.00"
Home Office,Home Office,17/09/2010,Grant,CPG - Crime & Policing Group,EAVES HOUSING FOR WOMEN LTD (G),509622,"990,500.00"
Home Office,Home Office,17/09/2010,Grant,CPG - Crime & Policing Group,BE SAFE PROJECT (G),516878,"62,050.00"
Home Office,Home Office,17/09/2010,"IT, Broadcasting & Telecomms.Computer Equip & Access - PROG",CPG - Crime & Policing Group,NPIA (National Policing Improvement Agency),1778003,"161,605.04"
Home Office,Home Office,20/09/2010,Grant,CPG - Crime & Policing Group,MIDDLESEX UNIVERSITY (G),516840,"25,000.00"
Home Office,Home Office,21/09/2010,Defense & Law Enforcement.Police Liaison Officers,CPG - Crime & Policing Group,SUSSEX POLICE AUTHORITY,1810702,"67,297.47"
Home Office,Home Office,21/09/2010,Grant,CPG - Crime & Policing Group,MERSEYSIDE POLICE AUTHORITY 1 (G),521624,"35,000.00"
Home Office,Home Office,21/09/2010,Professional & Admin Services.Residential Rental - PROG,CPG - Crime & Policing Group,WORKSPACE,1810732,"34,536.45"
Home Office,Home Office,22/09/2010,Grant,CPG - Crime & Policing Group,CONCATENO UK LIMITED,219093,"38,042.40"
Home Office,Home Office,23/09/2010,Grant,CPG - Crime & Policing Group,NATIONAL TREATMENT AGENCY (EASTERN,525674,"214,039.75"
Home Office,Home Office,23/09/2010,"IT, Broadcasting & Telecomms.IT Run Costs other -Prog",CPG - Crime & Policing Group,ALTIUS CONSULTING LTD,1810443,"42,206.00"
Home Office,Home Office,24/09/2010,Grant,CPG - Crime & Policing Group,NATIONAL UNION OF STUDENTS (G),527172,"40,000.00"
Home Office,Home Office,27/09/2010,"Building, Construction Service.Building ConstructionServ-PROG",CPG - Crime & Policing Group,"KELLOGG, BROWN AND ROOT LTD",1814636,"37,183.42"
Home Office,Home Office,27/09/2010,Defense & Law Enforcement.Police Liaison Officers,CPG - Crime & Policing Group,BEDFORDSHIRE POLICE AUTHORITY,1814687,"75,026.97"
Home Office,Home Office,27/09/2010,Defense & Law Enforcement.Police Liaison Officers,CPG - Crime & Policing Group,WEST YORKSHIRE POLICE AUTHORITY,1814410,"39,112.12"
Home Office,Home Office,27/09/2010,Defense & Law Enforcement.Police Liaison Officers,CPG - Crime & Policing Group,HAMPSHIRE CONSTABULARY,1814365,"28,010.03"
Home Office,Home Office,27/09/2010,Grant,CPG - Crime & Policing Group,CENTRAL BEDFORDSHIRE COUNCIL (G),526542,"26,900.79"
Home Office,Home Office,27/09/2010,Grant,CPG - Crime & Policing Group,NOTTINGHAM CITY COUNCIL (G),526542,"32,330.51"
Home Office,Home Office,27/09/2010,Grant,CPG - Crime & Policing Group,NEW WEST MERCIA POLICE AUTHORITY (,526550,"34,576.39"
Home Office,Home Office,27/09/2010,Grant,CPG - Crime & Policing Group,CAMBRIDGESHIRE POLICE AUTHORITY 1,526550,"36,180.25"
Home Office,Home Office,27/09/2010,Grant,CPG - Crime & Policing Group,SECURITY INDUSTRY AUTHORITY 1 (G),526544,"37,500.00"
Home Office,Home Office,27/09/2010,Grant,CPG - Crime & Policing Group,DORSET POLICE AUTHORITY 1 (G),526550,"40,404.02"
Home Office,Home Office,27/09/2010,Grant,CPG - Crime & Policing Group,DERBYSHIRE POLICE AUTHORITY 1 (G),526550,"40,770.68"
Home Office,Home Office,27/09/2010,Grant,CPG - Crime & Policing Group,DEPARTMENT FOR ENVIRONMENT FOOD AN,526544,"42,187.50"
Home Office,Home Office,27/09/2010,Grant,CPG - Crime & Policing Group,NORTH YORKSHIRE POLICE AUTHORITY (,526550,"42,551.56"
Home Office,Home Office,27/09/2010,Grant,CPG - Crime & Policing Group,GWENT POLICE AUTHORITY 1 (G),526550,"42,689.05"
Home Office,Home Office,27/09/2010,Grant,CPG - Crime & Policing Group,SOUTH YORKSHIRE POLICE AUTHORITY 1,526550,"43,497.02"
Home Office,Home Office,27/09/2010,Grant,CPG - Crime & Policing Group,STAFFORDSHIRE POLICE AUTHORITY (G),526550,"44,558.67"
Home Office,Home Office,27/09/2010,Grant,CPG - Crime & Policing Group,NEATH PORT TALBOT C B C (G),526542,"44,893.14"
Home Office,Home Office,27/09/2010,Grant,CPG - Crime & Policing Group,HERTFORDSHIRE POLICE AUTHORITY 1 (,526550,"46,822.08"
Home Office,Home Office,27/09/2010,Grant,CPG - Crime & Policing Group,HUMBERSIDE POLICE AUTHORITY 1 (G),526550,"48,454.87"
Home Office,Home Office,27/09/2010,Grant,CPG - Crime & Policing Group,CLEVELAND POLICE AUTHORITY 1 (G),526550,"50,131.05"
Home Office,Home Office,27/09/2010,Grant,CPG - Crime & Policing Group,THAMES VALLEY POLICE (G),526550,"50,524.08"
Home Office,Home Office,27/09/2010,Grant,CPG - Crime & Policing Group,DEPARTMENT FOR BUSINESS INNOVATION,526532,"53,835.29"
Home Office,Home Office,27/09/2010,Grant,CPG - Crime & Policing Group,NORTHAMPTONSHIRE POLICE 1 (G),526550,"53,874.60"
Home Office,Home Office,27/09/2010,Grant,CPG - Crime & Policing Group,CHESHIRE POLICE AUTHORITY 2 (G),526550,"56,060.58"
Home Office,Home Office,27/09/2010,Grant,CPG - Crime & Policing Group,BIRMINGHAM CITY COUNCIL (G),526542,"58,785.00"
Home Office,Home Office,27/09/2010,Grant,CPG - Crime & Policing Group,DEVON & CORNWALL CONSTABULARY 4 (G,526550,"67,026.84"
Home Office,Home Office,27/09/2010,Grant,CPG - Crime & Policing Group,DURHAM POLICE AUTHORITY 1 (G),526550,"67,028.77"
Home Office,Home Office,27/09/2010,Grant,CPG - Crime & Policing Group,BRITISH TRANSPORT POLICE AUTHORITY,526544,"69,306.04"
Home Office,Home Office,27/09/2010,Grant,CPG - Crime & Policing Group,SUSSEX POLICE AUTHORITY 1 (G),526550,"85,134.43"
Home Office,Home Office,27/09/2010,Grant,CPG - Crime & Policing Group,NORTH WALES POLICE AUTHORITY (G),526550,"89,354.17"
Home Office,Home Office,27/09/2010,Grant,CPG - Crime & Policing Group,SERIOUS FRAUD OFFICE (G),526532,"90,217.89"
Home Office,Home Office,27/09/2010,Grant,CPG - Crime & Policing Group,ESSEX POLICE AUTHORITY (G),526550,"91,668.04"
Home Office,Home Office,27/09/2010,Grant,CPG - Crime & Policing Group,BEDFORDSHIRE POLICE AUTHORITY 1 (G,526550,"92,681.36"
Home Office,Home Office,27/09/2010,Grant,CPG - Crime & Policing Group,SOUTH WALES POLICE AUTHORITY 1 (G),526550,"98,521.61"
Home Office,Home Office,27/09/2010,Grant,CPG - Crime & Policing Group,AVON & SOMERSET CONSTABULARY (G),526550,"98,788.28"
Home Office,Home Office,27/09/2010,Grant,CPG - Crime & Policing Group,NORTHUMBRIA POLICE (G),526550,"104,820.98"
Home Office,Home Office,27/09/2010,Grant,CPG - Crime & Policing Group,HAMPSHIRE POLICE AUTHORITY 1 (G),526550,"119,649.77"
Home Office,Home Office,27/09/2010,Grant,CPG - Crime & Policing Group,DEPARTMENT OF WORK & PENSIONS (G),526544,"126,092.85"
Home Office,Home Office,27/09/2010,Grant,CPG - Crime & Policing Group,WEST YORKSHIRE POLICE (G),526550,"131,649.99"
Home Office,Home Office,27/09/2010,Grant,CPG - Crime & Policing Group,GREATER MANCHESTER POLICE AUTHORIT,526550,"154,370.88"
Home Office,Home Office,27/09/2010,Grant,CPG - Crime & Policing Group,POLICE SERVICE OF NORTHERN IRELAND,526544,"155,973.68"
Home Office,Home Office,27/09/2010,Grant,CPG - Crime & Policing Group,MERSEYSIDE POLICE AUTHORITY 1 (G),526550,"171,386.43"
Home Office,Home Office,27/09/2010,Grant,CPG - Crime & Policing Group,WEST MIDLANDS POLICE AUTHORITY 1 (,526550,"195,799.14"
Home Office,Home Office,27/09/2010,Grant,CPG - Crime & Policing Group,LEICESTERSHIRE POLICE AUTHORITY (G,526550,"215,687.86"
Home Office,Home Office,27/09/2010,Grant,CPG - Crime & Policing Group,NOTTINGHAMSHIRE POLICE AUTHORITY 2,526550,"253,947.81"
Home Office,Home Office,27/09/2010,Grant,CPG - Crime & Policing Group,LANCASHIRE POLICE AUTHORITY 1 (G),526550,"375,333.60"
Home Office,Home Office,27/09/2010,Grant,CPG - Crime & Policing Group,SOCA (G),526544,"405,467.22"
Home Office,Home Office,27/09/2010,Grant,CPG - Crime & Policing Group,HM REVENUE & CUSTOMS (G),526532,"777,960.80"
Home Office,Home Office,27/09/2010,Grant,CPG - Crime & Policing Group,KENT POLICE AUTHORITY 1 (G),526550,"845,363.23"
Home Office,Home Office,27/09/2010,Grant,CPG - Crime & Policing Group,HER MAJESTY'S COURT SERVICE (G),526544,"2,544,830.80"
Home Office,Home Office,27/09/2010,Grant,CPG - Crime & Policing Group,CROWN PROSECUTION SERVICE (G),526532,"3,260,965.72"
Home Office,Home Office,27/09/2010,Grant,CPG - Crime & Policing Group,METROPOLITAN POLICE SERVICE (G),526550,"3,816,190.60"
Home Office,Home Office,27/09/2010,Grant,CPG - Crime & Policing Group,NATIONAL TREATMENT AGENCY (EASTERN,529050,"138,871.25"
Home Office,Home Office,27/09/2010,"IT, Broadcasting & Telecomms.IT Run Costs other -Prog",CPG - Crime & Policing Group,ALTIUS CONSULTING LTD,1810445,"37,710.72"
Home Office,Home Office,28/09/2010,Grant,CPG - Crime & Policing Group,CHAMBERLAIN OF LONDON (G),526590,"341,334.75"
Home Office,Home Office,28/09/2010,Grant,CPG - Crime & Policing Group,WARWICKSHIRE POLICE AUTHORITY 1 (G,526590,"421,192.00"
Home Office,Home Office,28/09/2010,Grant,CPG - Crime & Policing Group,NORTH YORKSHIRE POLICE AUTHORITY (,526590,"487,696.00"
Home Office,Home Office,28/09/2010,Grant,CPG - Crime & Policing Group,CUMBRIA POLICE AUTHORITY 1 (G),526590,"525,104.50"
Home Office,Home Office,28/09/2010,Grant,CPG - Crime & Policing Group,WILTSHIRE CONSTABULARY (G),526590,"543,116.00"
Home Office,Home Office,28/09/2010,Grant,CPG - Crime & Policing Group,CLEVELAND POLICE AUTHORITY 1 (G),526590,"545,887.00"
Home Office,Home Office,28/09/2010,Grant,CPG - Crime & Policing Group,LINCOLNSHIRE POLICE AUTHORITY 1 (G,526590,"547,272.50"
Home Office,Home Office,28/09/2010,Grant,CPG - Crime & Policing Group,SUFFOLK POLICE AUTHORITY (G),526590,"591,608.50"
Home Office,Home Office,28/09/2010,Grant,CPG - Crime & Policing Group,CAMBRIDGESHIRE POLICE AUTHORITY 1,526590,"598,536.00"
Home Office,Home Office,28/09/2010,Grant,CPG - Crime & Policing Group,DORSET POLICE AUTHORITY 1 (G),526590,"605,463.50"
Home Office,Home Office,28/09/2010,Grant,CPG - Crime & Policing Group,GLOUCESTERSHIRE POLICE AUTHORITY (,526590,"608,234.50"
Home Office,Home Office,28/09/2010,Grant,CPG - Crime & Policing Group,NORTHAMPTONSHIRE POLICE 1 (G),526590,"640,101.00"
Home Office,Home Office,28/09/2010,Grant,CPG - Crime & Policing Group,BEDFORDSHIRE POLICE AUTHORITY 1 (G,526590,"678,240.00"
Home Office,Home Office,28/09/2010,Grant,CPG - Crime & Policing Group,DURHAM POLICE AUTHORITY 1 (G),526590,"684,437.00"
Home Office,Home Office,28/09/2010,Grant,CPG - Crime & Policing Group,NORFOLK POLICE AUTHORITY 1 (G),526590,"803,590.00"
Home Office,Home Office,28/09/2010,Grant,CPG - Crime & Policing Group,HERTFORDSHIRE POLICE AUTHORITY 1 (,526590,"826,458.50"
Home Office,Home Office,28/09/2010,Grant,CPG - Crime & Policing Group,HUMBERSIDE POLICE AUTHORITY 1 (G),526590,"990,632.50"
Home Office,Home Office,28/09/2010,Grant,CPG - Crime & Policing Group,LEICESTERSHIRE POLICE AUTHORITY (G,526590,"1,015,571.50"
Home Office,Home Office,28/09/2010,Grant,CPG - Crime & Policing Group,SURREY POLICE AUTHORITY 1 (G),526590,"1,028,216.00"
Home Office,Home Office,28/09/2010,Grant,CPG - Crime & Policing Group,CHESHIRE POLICE AUTHORITY 2 (G),526590,"1,043,281.50"
Home Office,Home Office,28/09/2010,Grant,CPG - Crime & Policing Group,STAFFORDSHIRE POLICE AUTHORITY (G),526590,"1,057,136.50"
Home Office,Home Office,28/09/2010,Grant,CPG - Crime & Policing Group,NEW WEST MERCIA POLICE AUTHORITY (,526590,"1,082,075.50"
Home Office,Home Office,28/09/2010,Grant,CPG - Crime & Policing Group,DERBYSHIRE POLICE AUTHORITY 1 (G),526590,"1,136,110.00"
Home Office,Home Office,28/09/2010,Grant,CPG - Crime & Policing Group,NOTTINGHAMSHIRE POLICE AUTHORITY 2,526590,"1,158,278.00"
Home Office,Home Office,28/09/2010,Grant,CPG - Crime & Policing Group,AVON & SOMERSET POLICE AUTHORITY 1,526590,"1,421,523.00"
Home Office,Home Office,28/09/2010,Grant,CPG - Crime & Policing Group,SOUTH YORKSHIRE POLICE AUTHORITY 1,526590,"1,468,630.00"
Home Office,Home Office,28/09/2010,Grant,CPG - Crime & Policing Group,ESSEX POLICE AUTHORITY (G),526590,"1,516,917.50"
Home Office,Home Office,28/09/2010,Grant,CPG - Crime & Policing Group,SUSSEX POLICE AUTHORITY 1 (G),526590,"1,552,320.00"
Home Office,Home Office,28/09/2010,Grant,CPG - Crime & Policing Group,LANCASHIRE POLICE AUTHORITY 1 (G),526590,"1,644,588.50"
Home Office,Home Office,28/09/2010,Grant,CPG - Crime & Policing Group,DEVON & CORNWALL POLICE AUTHORITY,526590,"1,665,371.00"
Home Office,Home Office,28/09/2010,Grant,CPG - Crime & Policing Group,NORTHUMBRIA POLICE (G),526590,"1,817,776.00"
Home Office,Home Office,28/09/2010,Grant,CPG - Crime & Policing Group,HAMPSHIRE POLICE AUTHORITY 1 (G),526590,"1,827,360.00"
Home Office,Home Office,28/09/2010,Grant,CPG - Crime & Policing Group,KENT POLICE AUTHORITY 1 (G),526590,"1,908,476.50"
Home Office,Home Office,28/09/2010,Grant,CPG - Crime & Policing Group,WEST YORKSHIRE POLICE (G),526590,"2,214,029.00"
Home Office,Home Office,28/09/2010,Grant,CPG - Crime & Policing Group,MERSEYSIDE POLICE AUTHORITY 1 (G),526590,"2,374,747.00"
Home Office,Home Office,28/09/2010,Grant,CPG - Crime & Policing Group,THAMES VALLEY POLICE (G),526590,"2,482,364.50"
Home Office,Home Office,28/09/2010,Grant,CPG - Crime & Policing Group,WEST MIDLANDS POLICE AUTHORITY 1 (,526590,"3,868,316.00"
Home Office,Home Office,28/09/2010,Grant,CPG - Crime & Policing Group,GREATER MANCHESTER POLICE AUTHORIT,526590,"4,301,977.50"
Home Office,Home Office,28/09/2010,Grant,CPG - Crime & Policing Group,GREATER LONDON AUTHORITY (G),526590,"18,245,114.25"
Home Office,Home Office,28/09/2010,Grant,CPG - Crime & Policing Group,DYFED POWYS POLICE AUTHORITY 1 (G),526590,"572,211.50"
Home Office,Home Office,28/09/2010,Grant,CPG - Crime & Policing Group,GWENT POLICE AUTHORITY 1 (G),526590,"590,223.00"
Home Office,Home Office,28/09/2010,Grant,CPG - Crime & Policing Group,NORTH WALES POLICE AUTHORITY (G),526590,"753,712.00"
Home Office,Home Office,28/09/2010,Grant,CPG - Crime & Policing Group,SOUTH WALES POLICE AUTHORITY 1 (G),526590,"1,156,892.50"
Home Office,Home Office,28/09/2010,Grant,CPG - Crime & Policing Group,CHAMBERLAIN OF LONDON (G),512234-1,"420,058.96"
Home Office,Home Office,28/09/2010,Grant,CPG - Crime & Policing Group,CHAMBERLAIN OF LONDON (G),512234,"533,050.11"
Home Office,Home Office,28/09/2010,IT & Telecoms Components.Computer Equip (FA),CPG - Crime & Policing Group,LOGICA CMG (UK) LIMITED,1799566,"27,527.90"
Home Office,Home Office,28/09/2010,"IT, Broadcasting & Telecomms.IT Running Cost - Maint - PROG",CPG - Crime & Policing Group,LOGICA CMG UK LTD,1799563,"49,811.78"
Home Office,Home Office,29/09/2010,Grant,CPG - Crime & Policing Group,CAMBRIDGESHIRE POLICE AUTHORITY 1,532844-1,"115,313.60"
Home Office,Home Office,29/09/2010,Grant,CPG - Crime & Policing Group,CLEVELAND POLICE AUTHORITY 1 (G),532844-1,"128,110.60"
Home Office,Home Office,29/09/2010,Grant,CPG - Crime & Policing Group,CHESHIRE POLICE AUTHORITY 2 (G),532844-1,"131,534.00"
Home Office,Home Office,29/09/2010,Grant,CPG - Crime & Policing Group,DERBYSHIRE POLICE AUTHORITY 1 (G),532844-1,"153,796.20"
Home Office,Home Office,29/09/2010,Grant,CPG - Crime & Policing Group,LEICESTERSHIRE POLICE AUTHORITY (G,532844-1,"164,104.00"
Home Office,Home Office,29/09/2010,Grant,CPG - Crime & Policing Group,DEVON & CORNWALL POLICE AUTHORITY,532844-1,"167,774.80"
Home Office,Home Office,29/09/2010,Grant,CPG - Crime & Policing Group,NEW WEST MERCIA POLICE AUTHORITY (,532844-1,"175,511.60"
Home Office,Home Office,29/09/2010,Grant,CPG - Crime & Policing Group,HUMBERSIDE POLICE AUTHORITY 1 (G),532844-1,"189,284.40"
Home Office,Home Office,29/09/2010,Grant,CPG - Crime & Policing Group,STAFFORDSHIRE POLICE AUTHORITY (G),532844-1,"202,808.40"
Home Office,Home Office,29/09/2010,Grant,CPG - Crime & Policing Group,ESSEX POLICE AUTHORITY (G),532844-1,"206,872.20"
Home Office,Home Office,29/09/2010,Grant,CPG - Crime & Policing Group,KENT POLICE AUTHORITY 1 (G),532844-1,"210,241.20"
Home Office,Home Office,29/09/2010,Grant,CPG - Crime & Policing Group,LANCASHIRE POLICE AUTHORITY 1 (G),532844-1,"229,306.80"
Home Office,Home Office,29/09/2010,Grant,CPG - Crime & Policing Group,SUSSEX POLICE AUTHORITY 1 (G),532844-1,"234,289.00"
Home Office,Home Office,29/09/2010,Grant,CPG - Crime & Policing Group,SOUTH YORKSHIRE POLICE AUTHORITY 1,532844-1,"244,182.20"
Home Office,Home Office,29/09/2010,Grant,CPG - Crime & Policing Group,HAMPSHIRE POLICE AUTHORITY 1 (G),532844-1,"246,493.80"
Home Office,Home Office,29/09/2010,Grant,CPG - Crime & Policing Group,NOTTINGHAMSHIRE POLICE AUTHORITY 2,532844-1,"262,692.00"
Home Office,Home Office,29/09/2010,Grant,CPG - Crime & Policing Group,NORTHUMBRIA POLICE (G),532844-1,"270,116.00"
Home Office,Home Office,29/09/2010,Grant,CPG - Crime & Policing Group,MERSEYSIDE POLICE AUTHORITY 1 (G),532844-1,"278,490.80"
Home Office,Home Office,29/09/2010,Grant,CPG - Crime & Policing Group,THAMES VALLEY POLICE (G),532844-1,"342,973.00"
Home Office,Home Office,29/09/2010,Grant,CPG - Crime & Policing Group,AVON & SOMERSET POLICE AUTHORITY 1,532844-1,"349,970.40"
Home Office,Home Office,29/09/2010,Grant,CPG - Crime & Policing Group,WEST YORKSHIRE POLICE (G),532844-1,"552,242.00"
Home Office,Home Office,29/09/2010,Grant,CPG - Crime & Policing Group,GREATER MANCHESTER POLICE AUTHORIT,532844-1,"706,547.40"
Home Office,Home Office,29/09/2010,Grant,CPG - Crime & Policing Group,WEST MIDLANDS POLICE AUTHORITY 1 (,532844-1,"738,116.40"
Home Office,Home Office,29/09/2010,Grant,CPG - Crime & Policing Group,GREATER LONDON AUTHORITY (G),532844-1,"1,982,339.40"
Home Office,Home Office,29/09/2010,Grant,CPG - Crime & Policing Group,DYFED POWYS POLICE AUTHORITY 1 (G),532844,"411,663.00"
Home Office,Home Office,29/09/2010,Grant,CPG - Crime & Policing Group,GWENT POLICE AUTHORITY 1 (G),532844,"740,815.00"
Home Office,Home Office,29/09/2010,Grant,CPG - Crime & Policing Group,NORTH WALES POLICE AUTHORITY (G),532844,"834,611.00"
Home Office,Home Office,29/09/2010,Grant,CPG - Crime & Policing Group,SOUTH WALES POLICE AUTHORITY 1 (G),532844,"1,682,472.00"
Home Office,Home Office,29/09/2010,Grant,CPG - Crime & Policing Group,DYFED POWYS POLICE AUTHORITY 1 (G),532844-1,"54,294.20"
Home Office,Home Office,29/09/2010,Grant,CPG - Crime & Policing Group,NORTH WALES POLICE AUTHORITY (G),532844-1,"85,528.40"
Home Office,Home Office,29/09/2010,Grant,CPG - Crime & Policing Group,GWENT POLICE AUTHORITY 1 (G),532844-1,"95,550.20"
Home Office,Home Office,29/09/2010,Grant,CPG - Crime & Policing Group,SOUTH WALES POLICE AUTHORITY 1 (G),532844-1,"221,754.20"
Home Office,Home Office,29/09/2010,Grant,CPG - Crime & Policing Group,DERBYSHIRE POLICE AUTHORITY 1 (G),532844,"920,205.00"
Home Office,Home Office,29/09/2010,Grant,CPG - Crime & Policing Group,GLOUCESTERSHIRE POLICE AUTHORITY (,532844,"305,107.00"
Home Office,Home Office,29/09/2010,Grant,CPG - Crime & Policing Group,CHAMBERLAIN OF LONDON (G),532844,"317,238.00"
Home Office,Home Office,29/09/2010,Grant,CPG - Crime & Policing Group,BEDFORDSHIRE POLICE AUTHORITY 1 (G,532844,"505,070.00"
Home Office,Home Office,29/09/2010,Grant,CPG - Crime & Policing Group,CUMBRIA POLICE AUTHORITY 1 (G),532844,"587,324.00"
Home Office,Home Office,29/09/2010,Grant,CPG - Crime & Policing Group,WARWICKSHIRE POLICE AUTHORITY 1 (G,532844,"693,230.00"
Home Office,Home Office,29/09/2010,Grant,CPG - Crime & Policing Group,WILTSHIRE CONSTABULARY (G),532844,"705,436.00"
Home Office,Home Office,29/09/2010,Grant,CPG - Crime & Policing Group,LINCOLNSHIRE POLICE AUTHORITY 1 (G,532844,"717,004.00"
Home Office,Home Office,29/09/2010,Grant,CPG - Crime & Policing Group,CLEVELAND POLICE AUTHORITY 1 (G),532844,"741,461.00"
Home Office,Home Office,29/09/2010,Grant,CPG - Crime & Policing Group,NORTHAMPTONSHIRE POLICE 1 (G),532844,"762,565.00"
Home Office,Home Office,29/09/2010,Grant,CPG - Crime & Policing Group,SUFFOLK POLICE AUTHORITY (G),532844,"768,128.00"
Home Office,Home Office,29/09/2010,Grant,CPG - Crime & Policing Group,DORSET POLICE AUTHORITY 1 (G),532844,"816,377.00"
Home Office,Home Office,29/09/2010,Grant,CPG - Crime & Policing Group,DURHAM POLICE AUTHORITY 1 (G),532844,"834,109.00"
Home Office,Home Office,29/09/2010,Grant,CPG - Crime & Policing Group,NORTH YORKSHIRE POLICE AUTHORITY (,532844,"855,589.00"
Home Office,Home Office,29/09/2010,Grant,CPG - Crime & Policing Group,CAMBRIDGESHIRE POLICE AUTHORITY 1,532844,"914,158.00"
Home Office,Home Office,29/09/2010,Grant,CPG - Crime & Policing Group,NORFOLK POLICE AUTHORITY 1 (G),532844,"989,279.00"
Home Office,Home Office,29/09/2010,Grant,CPG - Crime & Policing Group,SURREY POLICE AUTHORITY 1 (G),532844,"1,111,583.00"
Home Office,Home Office,29/09/2010,Grant,CPG - Crime & Policing Group,STAFFORDSHIRE POLICE AUTHORITY (G),532844,"1,119,672.00"
Home Office,Home Office,29/09/2010,Grant,CPG - Crime & Policing Group,LEICESTERSHIRE POLICE AUTHORITY (G,532844,"1,180,917.00"
Home Office,Home Office,29/09/2010,Grant,CPG - Crime & Policing Group,HUMBERSIDE POLICE AUTHORITY 1 (G),532844,"1,190,525.00"
Home Office,Home Office,29/09/2010,Grant,CPG - Crime & Policing Group,CHESHIRE POLICE AUTHORITY 2 (G),532844,"1,212,389.00"
Home Office,Home Office,29/09/2010,Grant,CPG - Crime & Policing Group,HERTFORDSHIRE POLICE AUTHORITY 1 (,532844,"1,333,911.00"
Home Office,Home Office,29/09/2010,Grant,CPG - Crime & Policing Group,NEW WEST MERCIA POLICE AUTHORITY (,532844,"1,339,235.00"
Home Office,Home Office,29/09/2010,Grant,CPG - Crime & Policing Group,NOTTINGHAMSHIRE POLICE AUTHORITY 2,532844,"1,372,061.00"
Home Office,Home Office,29/09/2010,Grant,CPG - Crime & Policing Group,SOUTH YORKSHIRE POLICE AUTHORITY 1,532844,"1,649,855.00"
Home Office,Home Office,29/09/2010,Grant,CPG - Crime & Policing Group,ESSEX POLICE AUTHORITY (G),532844,"1,803,790.00"
Home Office,Home Office,29/09/2010,Grant,CPG - Crime & Policing Group,SUSSEX POLICE AUTHORITY 1 (G),532844,"1,808,175.00"
Home Office,Home Office,29/09/2010,Grant,CPG - Crime & Policing Group,AVON & SOMERSET POLICE AUTHORITY 1,532844,"1,839,347.00"
Home Office,Home Office,29/09/2010,Grant,CPG - Crime & Policing Group,DEVON & CORNWALL POLICE AUTHORITY,532844,"1,882,735.00"
Home Office,Home Office,29/09/2010,Grant,CPG - Crime & Policing Group,HAMPSHIRE POLICE AUTHORITY 1 (G),532844,"1,902,667.00"
Home Office,Home Office,29/09/2010,Grant,CPG - Crime & Policing Group,KENT POLICE AUTHORITY 1 (G),532844,"2,013,588.00"
Home Office,Home Office,29/09/2010,Grant,CPG - Crime & Policing Group,LANCASHIRE POLICE AUTHORITY 1 (G),532844,"2,053,250.00"
Home Office,Home Office,29/09/2010,Grant,CPG - Crime & Policing Group,NORTHUMBRIA POLICE (G),532844,"2,244,499.00"
Home Office,Home Office,29/09/2010,Grant,CPG - Crime & Policing Group,THAMES VALLEY POLICE (G),532844,"2,295,006.00"
Home Office,Home Office,29/09/2010,Grant,CPG - Crime & Policing Group,MERSEYSIDE POLICE AUTHORITY 1 (G),532844,"2,471,422.00"
Home Office,Home Office,29/09/2010,Grant,CPG - Crime & Policing Group,WEST YORKSHIRE POLICE (G),532844,"3,585,803.00"
Home Office,Home Office,29/09/2010,Grant,CPG - Crime & Policing Group,WEST MIDLANDS POLICE AUTHORITY 1 (,532844,"4,000,363.00"
Home Office,Home Office,29/09/2010,Grant,CPG - Crime & Policing Group,GREATER MANCHESTER POLICE AUTHORIT,532844,"4,349,921.00"
Home Office,Home Office,29/09/2010,Grant,CPG - Crime & Policing Group,GREATER LONDON AUTHORITY (G),532844,"25,472,122.00"
Home Office,Home Office,29/09/2010,Grant,CPG - Crime & Policing Group,CUMBRIA POLICE AUTHORITY 1 (G),532844-1,"62,984.40"
Home Office,Home Office,29/09/2010,Grant,CPG - Crime & Policing Group,WILTSHIRE CONSTABULARY (G),532844-1,"64,690.60"
Home Office,Home Office,29/09/2010,Grant,CPG - Crime & Policing Group,WARWICKSHIRE POLICE AUTHORITY 1 (G,532844-1,"70,937.60"
Home Office,Home Office,29/09/2010,Grant,CPG - Crime & Policing Group,LINCOLNSHIRE POLICE AUTHORITY 1 (G,532844-1,"77,577.40"
Home Office,Home Office,29/09/2010,Grant,CPG - Crime & Policing Group,GLOUCESTERSHIRE POLICE AUTHORITY (,532844-1,"80,913.40"
Home Office,Home Office,29/09/2010,Grant,CPG - Crime & Policing Group,SUFFOLK POLICE AUTHORITY (G),532844-1,"82,829.80"
Home Office,Home Office,29/09/2010,Grant,CPG - Crime & Policing Group,NORTH YORKSHIRE POLICE AUTHORITY (,532844-1,"89,307.40"
Home Office,Home Office,29/09/2010,Grant,CPG - Crime & Policing Group,DORSET POLICE AUTHORITY 1 (G),532844-1,"93,676.00"
Home Office,Home Office,29/09/2010,Grant,CPG - Crime & Policing Group,NORFOLK POLICE AUTHORITY 1 (G),532844-1,"93,888.00"
Home Office,Home Office,29/09/2010,Grant,CPG - Crime & Policing Group,SURREY POLICE AUTHORITY 1 (G),532844-1,"101,562.20"
Home Office,Home Office,29/09/2010,Grant,CPG - Crime & Policing Group,DURHAM POLICE AUTHORITY 1 (G),532844-1,"102,355.60"
Home Office,Home Office,29/09/2010,Grant,CPG - Crime & Policing Group,BEDFORDSHIRE POLICE AUTHORITY 1 (G,532844-1,"104,373.80"
Home Office,Home Office,29/09/2010,Grant,CPG - Crime & Policing Group,NORTHAMPTONSHIRE POLICE 1 (G),532844-1,"105,963.20"
Home Office,Home Office,29/09/2010,Grant,CPG - Crime & Policing Group,HERTFORDSHIRE POLICE AUTHORITY 1 (,532844-1,"111,870.80"
Home Office,Home Office,29/09/2010,Grant,CPG - Crime & Policing Group,NPIA (G),511074,"35,000,000.00"
Home Office,Home Office,30/09/2010,Defense & Law Enforcement.Police Liaison Officers,CPG - Crime & Policing Group,GREATER MANCHESTER POLICE,1817560,"40,000.00"
Home Office,Home Office,30/09/2010,Grant,CPG - Crime & Policing Group,INDEPENDENT POLICE COMPLAINTS COMI,511090,"2,000,000.00"
Home Office,Home Office,30/09/2010,Grant,CPG - Crime & Policing Group,GREATER MANCHESTER POLICE AUTHORIT,534432,"72,500.00"
Home Office,CRB - Criminal Records Bureau,06/09/2010,IT charges,CRB - Criminal Records Bureau,Home Office,14776   1,"52,415.00"
Home Office,CRB - Criminal Records Bureau,08/09/2010,Finance,CRB - Criminal Records Bureau,Capita Business Services Ltd,14790   12,"260,056.49"
Home Office,CRB - Criminal Records Bureau,10/09/2010,PNC Charges,CRB - Criminal Records Bureau,NPIA,14802   3,"149,162.61"
Home Office,CRB - Criminal Records Bureau,13/09/2010,Finance,CRB - Criminal Records Bureau,Capita Business Services Ltd,14809   1,"14,503,452.75"
Home Office,CRB - Criminal Records Bureau,22/09/2010,Police costs per check,CRB - Criminal Records Bureau,The Metropolitan Police,14859   4,"715,124.06"
Home Office,CRB - Criminal Records Bureau,23/09/2010,Police costs per check,CRB - Criminal Records Bureau,Cambridgeshire Police Auth,14869   2,"61,488.72"
Home Office,CRB - Criminal Records Bureau,23/09/2010,Police costs per check,CRB - Criminal Records Bureau,Cumbria Police Authority Main,14869   3,"29,077.19"
Home Office,CRB - Criminal Records Bureau,23/09/2010,Police costs per check,CRB - Criminal Records Bureau,Derbyshire Police Authority,14869   4,"72,745.79"
Home Office,CRB - Criminal Records Bureau,23/09/2010,Police costs per check,CRB - Criminal Records Bureau,Durham Police Authority,14869   5,"31,531.10"
Home Office,CRB - Criminal Records Bureau,23/09/2010,Police costs per check,CRB - Criminal Records Bureau,Essex Police Authority Revenue,14869   6,"298,509.20"
Home Office,CRB - Criminal Records Bureau,23/09/2010,Police costs per check,CRB - Criminal Records Bureau,Hampshire Police Authority,14869   9,"148,553.04"
Home Office,CRB - Criminal Records Bureau,23/09/2010,Police costs per check,CRB - Criminal Records Bureau,Hertfordshire Police Authority,14869   10,"46,801.00"
Home Office,CRB - Criminal Records Bureau,23/09/2010,Police costs per check,CRB - Criminal Records Bureau,KENT CONSTABULARY,14869   11,"80,157.44"
Home Office,CRB - Criminal Records Bureau,23/09/2010,Police costs per check,CRB - Criminal Records Bureau,Merseyside Police Authority,14869   14,"76,345.19"
Home Office,CRB - Criminal Records Bureau,23/09/2010,Police costs per check,CRB - Criminal Records Bureau,Norfolk Police Authority,14869   15,"40,787.74"
Home Office,CRB - Criminal Records Bureau,23/09/2010,Police costs per check,CRB - Criminal Records Bureau,Northumbria Police,14869   16,"39,911.98"
Home Office,CRB - Criminal Records Bureau,23/09/2010,Police costs per check,CRB - Criminal Records Bureau,Nottinghamshire Police Authori,14869   17,"47,636.03"
Home Office,CRB - Criminal Records Bureau,23/09/2010,Police costs per check,CRB - Criminal Records Bureau,North Wales Police Funding Acc,14869   18,"43,836.65"
Home Office,CRB - Criminal Records Bureau,23/09/2010,Police costs per check,CRB - Criminal Records Bureau,North Yorkshire Police Authori,14869   19,"51,170.20"
Home Office,CRB - Criminal Records Bureau,23/09/2010,Police costs per check,CRB - Criminal Records Bureau,Disclosure Scotland,14869   20,"26,116.27"
Home Office,CRB - Criminal Records Bureau,23/09/2010,Police costs per check,CRB - Criminal Records Bureau,South Yorkshire Police,14869   21,"41,094.97"
Home Office,CRB - Criminal Records Bureau,23/09/2010,Police costs per check,CRB - Criminal Records Bureau,Suffolk Police Authority,14869   22,"66,425.26"
Home Office,CRB - Criminal Records Bureau,23/09/2010,Police costs per check,CRB - Criminal Records Bureau,Thames Valley Police Authority,14869   23,"101,848.60"
Home Office,CRB - Criminal Records Bureau,23/09/2010,Police costs per check,CRB - Criminal Records Bureau,Wiltshire Police Authority Inc,14869   24,"80,831.07"
Home Office,Home Office,02/09/2010,Travel & Food & Lodging.Travel facilitation,PFD*,CARLSON WAGONLIT TRAVEL,1797300,"72,787.80"
Home Office,Home Office,02/09/2010,"Transport, Storage & Mail Serv.Fuel & Vehicle Supp Serv- PROG",PFD*,ARVAL UK LTD,1797279,"73,685.90"
Home Office,Home Office,02/09/2010,"Science, Technical & Research.Testing","Research, Dev & Statistics",COHERENT EUROPE BV,1796184,"61,687.50"
Home Office,Home Office,02/09/2010,"IT, Broadcasting & Telecomms.IT Maintenance - ADMN",SSD - Shared Service Directorate,ATOS ORIGIN IT SERVICES UK LIMITED- MEDICAL SERVICES,1790599,"256,604.73"
Home Office,Home Office,02/09/2010,Management & Admin Serv.Temporary managerial staff,SSD - Shared Service Directorate,ADVANTAGE TECHNICAL RESOURCING,1796491,"26,222.24"
Home Office,Home Office,02/09/2010,Utilities.Small Scale Radio Sys - PROG,SSD - Shared Service Directorate,AIRWAVE SOLUTIONS LTD,1745811,"264,313.66"
Home Office,Home Office,06/09/2010,IT & Telecommunications.IT & Telecommunications,Communications,SAVVIS UK LTD,1786091,"61,260.53"
Home Office,Home Office,06/09/2010,"OGD's, Councils & Police Authorities",PFD*,CRIMINAL RECORDS BUREAU,1799601,"3,785,381.13"
Home Office,Home Office,06/09/2010,"OGDs, COUNCILS & POLICE AUTHORITIES.OGD",PFD*,SECURITY SERVICE,1299640,"52,092.00"
Home Office,Home Office,07/09/2010,"IT, Broadcasting & Telecomms.IT Running Cost - Maint - PROG",SSD - Shared Service Directorate,ATOS ORIGIN IT SERVICES UK LIMITED- MEDICAL SERVICES,1784460,"2,399,213.99"
Home Office,Home Office,07/09/2010,"IT, Broadcasting & Telecomms.IT Running Cost - Maint - PROG",SSD - Shared Service Directorate,ATOS ORIGIN IT SERVICES UK LIMITED- MEDICAL SERVICES,1790598,"52,327.65"
Home Office,Home Office,08/09/2010,Travel & Food & Lodging.Travel facilitation,PFD*,CARLSON WAGONLIT TRAVEL,1801519,"102,924.30"
Home Office,Home Office,08/09/2010,GPC Card,PFD*,BARCLAYS BANK,1799495,"417,217.28"
Home Office,Home Office,08/09/2010,Management & Admin Serv.Temp IT N/w Specialists - ADMN,SSD - Shared Service Directorate,NES IT,1801534,"40,948.75"
Home Office,Home Office,09/09/2010,"IT, Broadcasting & Telecomms.IT Run Cost � Info Support",SSD - Shared Service Directorate,SAVVIS UK LTD,1680429,"39,625.02"
Home Office,Home Office,09/09/2010,"IT, Broadcasting & Telecomms.IT Running Cost - Maint - PROG",SSD - Shared Service Directorate,SERCO  LTD,1797681,"615,067.85"
Home Office,Home Office,10/09/2010,Professional Services,PFD*,BABCOCK NUCLEAR SERVICES LTD,1802527,"85,092.15"
Home Office,Home Office,10/09/2010,FLEET.VEHICLES,PFD*,LEX AUTOLEASE LTD,1803218,"64,989.43"
Home Office,Home Office,10/09/2010,FLEET.VEHICLES,PFD*,LEX AUTOLEASE LTD,1803230,"28,591.40"
Home Office,Home Office,10/09/2010,"Science, Technical & Research.Social Research","Research, Dev & Statistics",IMPERIAL COLLEGE LONDON,1803271,"53,875.00"
Home Office,Home Office,13/09/2010,FLEET.VEHICLES,PFD*,LEX AUTOLEASE LTD,1804327,"56,686.30"
Home Office,Home Office,13/09/2010,"Science, Technical & Research.Social Research","Research, Dev & Statistics",IMPERIAL COLLEGE LONDON,1804569,"58,375.00"
Home Office,Home Office,13/09/2010,"IT, Broadcasting & Telecomms.IT Run Costs Other - ADMN",SSD - Shared Service Directorate,CABLE & WIRELESS,1796084,"80,750.70"
Home Office,Home Office,13/09/2010,"IT, Broadcasting & Telecomms.IT Run Costs Other - ADMN",SSD - Shared Service Directorate,CABLE & WIRELESS,1796076,"78,943.55"
Home Office,Home Office,13/09/2010,"IT, Broadcasting & Telecomms.IT Run Costs Other - ADMN",SSD - Shared Service Directorate,CABLE & WIRELESS,1796388,"78,943.55"
Home Office,Home Office,13/09/2010,"IT, Broadcasting & Telecomms.IT Run Costs Other - ADMN",SSD - Shared Service Directorate,CABLE & WIRELESS,1796062,"44,016.67"
Home Office,Home Office,13/09/2010,"IT, Broadcasting & Telecomms.IT Running Cost - Maint - PROG",SSD - Shared Service Directorate,ATOS ORIGIN IT SERVICES UK LIMITED- MEDICAL SERVICES,1792358,"175,032.70"
Home Office,Home Office,14/09/2010,Travel & Food & Lodging.Travel facilitation,PFD*,CARLSON WAGONLIT TRAVEL,1805532,"107,556.75"
Home Office,Home Office,14/09/2010,"Science, Technical & Research.Computer services - PROG",SSD - Shared Service Directorate,FINCORE LTD,1796040,"41,078.00"
Home Office,Home Office,14/09/2010,"Science, Technical & Research.Computer services - PROG",SSD - Shared Service Directorate,FINCORE LTD,1796038,"61,481.88"
Home Office,Home Office,15/09/2010,Professional & Admin Services.Business admin services - PROG,Performance & Finance Directorate,KPMG LLP,1805403,"365,697.86"
Home Office,Home Office,17/09/2010,Utilities.Telephone Comms - PROG,SSD - Shared Service Directorate,GLOBAL CROSSING,1774459,"51,470.89"
Home Office,Home Office,20/09/2010,MARKETING & COMMS.CONFERENCES AND EVENTS,PFD*,NYS CORPORATE LTD,1809913,"36,775.81"
Home Office,Home Office,20/09/2010,"IT, Broadcasting & Telecomms.Sirius - Other Services - ADMN",SSD - Shared Service Directorate,FUJITSU SERVICES (ALCEDO) LTD,1778407,"97,212.05"
Home Office,Home Office,20/09/2010,"Science, Technical & Research.Computer services - PROG",SSD - Shared Service Directorate,PROBRAND LTD,1809512,"27,225.93"
Home Office,Home Office,21/09/2010,Published Products.Electronic publication & music,Communications,SAVVIS UK LTD,1796077,"31,224.19"
Home Office,Home Office,21/09/2010,IT & Telecoms,PFD*,DETICA LTD,1746962,"44,625.98"
Home Office,Home Office,21/09/2010,"IT, Broadcasting & Telecomms.IT Run Cost � Info Support",SSD - Shared Service Directorate,SAVVIS UK LTD,1796071,"142,458.49"
Home Office,Home Office,21/09/2010,"IT, Broadcasting & Telecomms.IT Run Cost � Info Support",SSD - Shared Service Directorate,SAVVIS UK LTD,1796051,"59,224.29"
Home Office,Home Office,21/09/2010,"IT, Broadcasting & Telecomms.IT Run Cost � Info Support",SSD - Shared Service Directorate,SAVVIS UK LTD,1796041,"36,169.86"
Home Office,Home Office,22/09/2010,Travel & Food & Lodging.Travel facilitation,PFD*,CARLSON WAGONLIT TRAVEL,1811610,"121,725.36"
Home Office,Home Office,22/09/2010,"IT, Broadcasting & Telecomms.Sirius - Other Services - ADMN",SSD - Shared Service Directorate,FUJITSU SERVICES (ALCEDO) LTD,1811664,"7,673,685.04"
Home Office,Home Office,23/09/2010,FLEET.VEHICLE MANAGEMENT,PFD*,ENTERPRISE RENT-A-CAR UK LTD,1812788,"25,813.42"
Home Office,Home Office,23/09/2010,ESTATES AND FACILITIES.RENT & RATES,"Research, Dev & Statistics",DTZ DEBENHAM TIE LEUNG LTD,1811924,"35,242.06"
Home Office,Home Office,24/09/2010,"IT, Broadcasting & Telecomms.IT Run Costs Other - ADMN",SSD - Shared Service Directorate,FUJITSU SERVICES LTD,1797209,"715,066.33"
Home Office,Home Office,24/09/2010,"IT, Broadcasting & Telecomms.Personal Comms Devices - PROG",SSD - Shared Service Directorate,GLOBAL CROSSING,1758799,"82,565.04"
Home Office,Home Office,27/09/2010,IT & Telecommunications.IT & Telecommunications,SSD - Shared Service Directorate,FUJITSU SERVICES (ALCEDO) LTD,1798138,"27,667.70"
Home Office,Home Office,27/09/2010,IT & Telecommunications.IT & Telecommunications,SSD - Shared Service Directorate,FUJITSU SERVICES (ALCEDO) LTD,1798245,"26,792.83"
Home Office,Home Office,27/09/2010,IT & Telecommunications.IT & Telecommunications,SSD - Shared Service Directorate,FUJITSU SERVICES (ALCEDO) LTD,1798243,"61,587.62"
Home Office,Home Office,27/09/2010,IT & Telecommunications.IT & Telecommunications - ADMN,SSD - Shared Service Directorate,FUJITSU SERVICES (ALCEDO) LTD,1798168,"131,518.92"
Home Office,Home Office,27/09/2010,"IT, Broadcasting & Telecomms.Sirius-Business Projects- PROG",SSD - Shared Service Directorate,FUJITSU SERVICES (ALCEDO) LTD,1798136,"53,672.96"
Home Office,Home Office,27/09/2010,"IT, Broadcasting & Telecomms.Software - ADMN",SSD - Shared Service Directorate,FUJITSU SERVICES (ALCEDO) LTD,1798135,"25,204.92"
Home Office,Home Office,28/09/2010,Travel & Food & Lodging.Travel facilitation,PFD*,CARLSON WAGONLIT TRAVEL,1815447,"102,843.74"
Home Office,Home Office,28/09/2010,"Transport, Storage & Mail Serv.Fuel & Vehicle Supp Serv- PROG",PFD*,ARVAL UK LTD,1815441,"57,141.91"
Home Office,Home Office,28/09/2010,"Science, Technical & Research.Computer services - PROG",SSD - Shared Service Directorate,FINCORE LTD,1811841,"61,481.88"
Home Office,Home Office,30/09/2010,"IT, Broadcasting & Telecomms.IT Running Cost - Maint - PROG",SSD - Shared Service Directorate,ATOS ORIGIN IT SERVICES UK LIMITED- MEDICAL SERVICES,1813559,"52,327.65"
Home Office,Home Office,30/09/2010,Management & Admin Serv.Temp IT N/w Specialists - ADMN,SSD - Shared Service Directorate,AMTEC CONSULTING GROUP,1800379,"37,776.60"
Home Office,Home Office,30/09/2010,"Transport, Storage & Mail Serv.File (Archive) Storage - ADMN",SSD - Shared Service Directorate,TNT UK LIMITED,1817374,"37,323.64"
Home Office,Home Office,01/09/2010,"IT, Broadcasting & Telecomms",Performance & Finance Directorate,OGC BUYING SOLUTIONS,SINMIS3290-1,"159,145.36"
Home Office,Home Office,02/09/2010,"IT, Broadcasting & Telecomms",Performance & Finance Directorate,OGC BUYING SOLUTIONS,SINMIS3662,"1,517,081.57"
Home Office,Home Office,15/09/2010,Security & Safety Services,Group HR,FCO SERVICES,6022054,"60,430.25"
Home Office,Home Office,16/09/2010,Professional & Admin Services,Group HR,DWP (SHARED SERVICES),2846864,"152,093.18"
Home Office,Home Office,20/09/2010,"IT, Broadcasting & Telecomms",Performance & Finance Directorate,HM PRISON SERVICE,308315,"650,874.80"
Home Office,Home Office,20/09/2010,Professional & Admin Services,Performance & Finance Directorate,HM PRISON SERVICE,308314,"27,845.15"
Home Office,Home Office,27/09/2010,Professional & Admin Services,Performance & Finance Directorate,HM PRISON SERVICE,308684,"27,845.15"
Home Office,IPCC - Independent Police Complaints Commission,14/09/2010,Facilities,IPCC - Independent Police Complaints Commission,EASTERN BUSINESS PARK,RCT0033808,"32,084.55"
Home Office,IPCC - Independent Police Complaints Commission,14/09/2010,Facilities,IPCC - Independent Police Complaints Commission,WM MORRISON SUPERMARKETS PLC,RCT0033794,"30,843.75"
Home Office,IPCC - Independent Police Complaints Commission,16/09/2010,Facilities,IPCC - Independent Police Complaints Commission,OMD SERVICES LIMITED,RCT0033827,"328,930.15"
Home Office,IPCC - Independent Police Complaints Commission,16/09/2010,Facilities,IPCC - Independent Police Complaints Commission,OMD SERVICES LIMITED,RCT0033827,"258,033.60"
Home Office,IPCC - Independent Police Complaints Commission,16/09/2010,Facilities,IPCC - Independent Police Complaints Commission,OMD SERVICES LIMITED,RCT0033827,"46,769.16"
Home Office,IPCC - Independent Police Complaints Commission,16/09/2010,Facilities,IPCC - Independent Police Complaints Commission,OMD SERVICES LIMITED,RCT0033827,"58,924.54"
Home Office,IPCC - Independent Police Complaints Commission,20/09/2010,IT,IPCC - Independent Police Complaints Commission,STERIA,RCT0033839,"285,333.20"
Home Office,IPS - Identity & Passport Service,03/09/2010,Other Government Departments,IPS - Identity & Passport Service,HOME OFFICE PAY & PENSIONS SER,135414,"57,222.65"
Home Office,IPS - Identity & Passport Service,03/09/2010,Passport Printing,IPS - Identity & Passport Service,Security Printing Systems Ltd,135413,"882,757.37"
Home Office,IPS - Identity & Passport Service,03/09/2010,Software & Licenses,IPS - Identity & Passport Service,CSC COMPUTER SCIENCES LTD,135406,"869,977.25"
Home Office,IPS - Identity & Passport Service,07/09/2010,Other Government Departments,IPS - Identity & Passport Service,HOME OFFICE - AFU CASH MANAGEM,135473,"250,201.00"
Home Office,IPS - Identity & Passport Service,07/09/2010,Passport Processing,IPS - Identity & Passport Service,Siemens Business Services Ltd,135487,"69,685.31"
Home Office,IPS - Identity & Passport Service,07/09/2010,Software & Licenses,IPS - Identity & Passport Service,CSC COMPUTER SCIENCES LTD,135441,"881,239.43"
Home Office,IPS - Identity & Passport Service,07/09/2010,Train/Air Travel,IPS - Identity & Passport Service,Harry Weeks Executive Travel,135471,"57,575.83"
Home Office,IPS - Identity & Passport Service,10/09/2010,Brochures,IPS - Identity & Passport Service,RUFUS LEONARD LTD,135523,"54,226.80"
Home Office,IPS - Identity & Passport Service,10/09/2010,Consultancy & Professional Ser,IPS - Identity & Passport Service,ERNST & YOUNG LLP,135502,"107,403.93"
Home Office,IPS - Identity & Passport Service,10/09/2010,Contracted Staff,IPS - Identity & Passport Service,Capita Resourcing Ltd,135493,"67,631.06"
Home Office,IPS - Identity & Passport Service,10/09/2010,Contracted Staff,IPS - Identity & Passport Service,SPRING TECHNOLOGY,135526,"42,388.14"
Home Office,IPS - Identity & Passport Service,10/09/2010,Facilities Management,IPS - Identity & Passport Service,Interserve,135510,"36,471.54"
Home Office,IPS - Identity & Passport Service,10/09/2010,IT Development,IPS - Identity & Passport Service,IBM UNITED KINGDOM LIMITED,135508,"7,046,910.93"
Home Office,IPS - Identity & Passport Service,10/09/2010,Other Government Departments,IPS - Identity & Passport Service,HOME OFFICE - AFU CASH MANAGEM,135507,"288,924.27"
Home Office,IPS - Identity & Passport Service,10/09/2010,Passport Printing,IPS - Identity & Passport Service,Security Printing Systems Ltd,135506,"457,297.59"
Home Office,IPS - Identity & Passport Service,14/09/2010,Accommodation,IPS - Identity & Passport Service,MAPELEY ACQUISITION Co (2) LTD,135558,"174,337.10"
Home Office,IPS - Identity & Passport Service,14/09/2010,Consultancy & Professional Ser,IPS - Identity & Passport Service,ERNST & YOUNG LLP,135545,"335,125.45"
Home Office,IPS - Identity & Passport Service,14/09/2010,Consultancy & Professional Ser,IPS - Identity & Passport Service,PA Consulting Group,135561,"525,818.10"
Home Office,IPS - Identity & Passport Service,14/09/2010,Passport Stationery,IPS - Identity & Passport Service,ADARE LTD,135530,"147,873.86"
Home Office,IPS - Identity & Passport Service,14/09/2010,Passports - Secure Mail,IPS - Identity & Passport Service,SECURE MAIL SERVICES LIMITED,135566,"1,060,421.37"
Home Office,IPS - Identity & Passport Service,14/09/2010,Software & Licenses,IPS - Identity & Passport Service,CSC COMPUTER SCIENCES LTD,135542,"193,301.61"
Home Office,IPS - Identity & Passport Service,17/09/2010,Other Government Departments,IPS - Identity & Passport Service,HOME OFFICE - AFU CASH MANAGEM,135584,"131,571.20"
Home Office,IPS - Identity & Passport Service,17/09/2010,Passport Printing,IPS - Identity & Passport Service,Security Printing Systems Ltd,135583,"1,209,739.91"
Home Office,IPS - Identity & Passport Service,17/09/2010,Software & Licenses,IPS - Identity & Passport Service,CSC COMPUTER SCIENCES LTD,135577,"1,552,737.83"
Home Office,IPS - Identity & Passport Service,17/09/2010,Translation Services and Inter,IPS - Identity & Passport Service,PRESTIGE NETWORK LTD,135593,"25,832.44"
Home Office,IPS - Identity & Passport Service,21/09/2010,Accommodation,IPS - Identity & Passport Service,Prudential Property Investment,135637,"777,843.01"
Home Office,IPS - Identity & Passport Service,21/09/2010,Consultancy & Professional Ser,IPS - Identity & Passport Service,DELOITTE MCS LTD,135619,"96,462.72"
Home Office,IPS - Identity & Passport Service,21/09/2010,Contracted Staff,IPS - Identity & Passport Service,Capita Resourcing Ltd,135612,"39,871.68"
Home Office,IPS - Identity & Passport Service,21/09/2010,Office Stationery,IPS - Identity & Passport Service,Canon (UK) Ltd,135611,"29,186.44"
Home Office,IPS - Identity & Passport Service,21/09/2010,Other Government Departments,IPS - Identity & Passport Service,FCO Services,135623,"103,546.88"
Home Office,IPS - Identity & Passport Service,21/09/2010,Other Government Departments,IPS - Identity & Passport Service,HOME OFFICE - AFU CASH MANAGEM,135628,"320,628.85"
Home Office,IPS - Identity & Passport Service,21/09/2010,Other Government Departments,IPS - Identity & Passport Service,The Treasury Solicitor,135645,"28,676.06"
Home Office,IPS - Identity & Passport Service,21/09/2010,Passports - Secure Mail,IPS - Identity & Passport Service,SECURE MAIL SERVICES LIMITED,135643,"729,598.57"
Home Office,IPS - Identity & Passport Service,21/09/2010,Software & Licenses,IPS - Identity & Passport Service,CSC COMPUTER SCIENCES LTD,135617,"497,807.40"
Home Office,IPS - Identity & Passport Service,24/09/2010,Accommodation,IPS - Identity & Passport Service,WH 101 OLD HALL STREET LTD,135686,"410,263.62"
Home Office,IPS - Identity & Passport Service,24/09/2010,Consultancy & Professional Ser,IPS - Identity & Passport Service,DELOITTE MCS LTD,135657,"87,727.62"
Home Office,IPS - Identity & Passport Service,24/09/2010,Occupational Health Management,IPS - Identity & Passport Service,Health Management Ltd,135664,"75,995.31"
Home Office,IPS - Identity & Passport Service,24/09/2010,Passport Printing,IPS - Identity & Passport Service,Security Printing Systems Ltd,135666,"1,137,580.53"
Home Office,IPS - Identity & Passport Service,24/09/2010,Rent,IPS - Identity & Passport Service,Jones Lang LASELLE,135670,"47,587.50"
Home Office,IPS - Identity & Passport Service,28/09/2010,Consultancy & Professional Ser,IPS - Identity & Passport Service,ERNST & YOUNG LLP,135698,"82,975.68"
Home Office,IPS - Identity & Passport Service,28/09/2010,Contact Centre,IPS - Identity & Passport Service,MM TELEPERFORMANCE,135714,"134,063.39"
Home Office,IPS - Identity & Passport Service,28/09/2010,IT Development,IPS - Identity & Passport Service,IBM UNITED KINGDOM LIMITED,135709,"2,070,033.94"
Home Office,IPS - Identity & Passport Service,28/09/2010,Passport Printing,IPS - Identity & Passport Service,Security Printing Systems Ltd,135708,"74,754.35"
Home Office,ISA - Independent Safeguarding Authority,09/09/2010,Prepay-Rent,ISA - Independent Safeguarding Authority,City & Northern Ltd,2698,"137,267.61"
Home Office,ISA - Independent Safeguarding Authority,29/09/2010,Equipment Rental,ISA - Independent Safeguarding Authority,The Home Office,2779,"42,409.90"
Home Office,NPIA - National Policing Improvement Agency,01/09/2010,Airwave Core Service Charge,Operations Directorate,Airwave Solutions Ltd,5100045465,"14,764,483.34"
Home Office,NPIA - National Policing Improvement Agency,01/09/2010,Airwave Core Service Charge,Operations Directorate,Airwave Solutions Ltd,5100045466,"224,932.61"
Home Office,NPIA - National Policing Improvement Agency,01/09/2010,Airwave Core Service Charge,Operations Directorate,Airwave Solutions Ltd,5100045466,1
Home Office,NPIA - National Policing Improvement Agency,01/09/2010,FM Costs,Resources Directorate,Wyboston Lakes Ltd,5100045722,"112,411.99"
Home Office,NPIA - National Policing Improvement Agency,01/09/2010,Rent of telephone exchange,ICTS,BT Global Services,1900057189,"50,193.45"
Home Office,NPIA - National Policing Improvement Agency,01/09/2010,Management consultancy,ICTS,Deloitte,5100045579,"15,820.00"
Home Office,NPIA - National Policing Improvement Agency,01/09/2010,Management consultancy,ICTS,Deloitte,5100045579,14.37
Home Office,NPIA - National Policing Improvement Agency,01/09/2010,Management consultancy,ICTS,Deloitte,5100045579,"21,291.10"
Home Office,NPIA - National Policing Improvement Agency,01/09/2010,Management consultancy,ICTS,Deloitte,5100045579,-0.47
Home Office,NPIA - National Policing Improvement Agency,01/09/2010,IT equipment <5000,ICTS,Cable & Wireless Communications,5100045765,"15,960.00"
Home Office,NPIA - National Policing Improvement Agency,01/09/2010,IT equipment <5000,ICTS,Cable & Wireless Communications,5100045765,"47,038.53"
Home Office,NPIA - National Policing Improvement Agency,01/09/2010,IT equipment <5000,ICTS,Cable & Wireless Communications,5100045765,-0.33
Home Office,NPIA - National Policing Improvement Agency,01/09/2010,IT equipment <5000,ICTS,Cable & Wireless Communications,5100045765,"13,267.44"
Home Office,NPIA - National Policing Improvement Agency,01/09/2010,IT equipment <5000,ICTS,Cable & Wireless Communications,5100045765,-0.04
Home Office,NPIA - National Policing Improvement Agency,01/09/2010,IT equipment <5000,ICTS,Cable & Wireless Communications,5100045765,"13,267.44"
Home Office,NPIA - National Policing Improvement Agency,01/09/2010,IT equipment <5000,ICTS,Cable & Wireless Communications,5100045765,-0.04
Home Office,NPIA - National Policing Improvement Agency,01/09/2010,IT equipment <5000,ICTS,Cable & Wireless Communications,5100045765,"4,400.00"
Home Office,NPIA - National Policing Improvement Agency,01/09/2010,IT equipment <5000,ICTS,Cable & Wireless Communications,5100045765,"4,128.04"
Home Office,NPIA - National Policing Improvement Agency,01/09/2010,IT equipment <5000,ICTS,Cable & Wireless Communications,5100045765,-0.04
Home Office,NPIA - National Policing Improvement Agency,01/09/2010,IT equipment <5000,ICTS,Cable & Wireless Communications,5100045765,"5,570.00"
Home Office,NPIA - National Policing Improvement Agency,01/09/2010,IT equipment <5000,ICTS,Cable & Wireless Communications,5100045765,"9,504.00"
Home Office,NPIA - National Policing Improvement Agency,01/09/2010,IT equipment <5000,ICTS,Cable & Wireless Communications,5100045765,460
Home Office,NPIA - National Policing Improvement Agency,01/09/2010,IT Information Support,Operations Directorate,Cable & Wireless Communications,5100045780,"52,725.00"
Home Office,NPIA - National Policing Improvement Agency,01/09/2010,IT Information Support,Operations Directorate,Cable & Wireless Communications,5100045781,187.5
Home Office,NPIA - National Policing Improvement Agency,01/09/2010,IT Information Support,Operations Directorate,Cable & Wireless Communications,5100045781,"1,900.00"
Home Office,NPIA - National Policing Improvement Agency,01/09/2010,IT Information Support,Operations Directorate,Cable & Wireless Communications,5100045781,"6,989.00"
Home Office,NPIA - National Policing Improvement Agency,01/09/2010,IT Information Support,Operations Directorate,Cable & Wireless Communications,5100045781,"2,250.00"
Home Office,NPIA - National Policing Improvement Agency,01/09/2010,IT Information Support,Operations Directorate,Cable & Wireless Communications,5100045781,"4,000.00"
Home Office,NPIA - National Policing Improvement Agency,01/09/2010,IT Information Support,Operations Directorate,Cable & Wireless Communications,5100045781,"3,515.00"
Home Office,NPIA - National Policing Improvement Agency,01/09/2010,IT Information Support,Operations Directorate,Cable & Wireless Communications,5100045781,"3,840.00"
Home Office,NPIA - National Policing Improvement Agency,01/09/2010,IT Information Support,Operations Directorate,Cable & Wireless Communications,5100045781,"3,600.00"
Home Office,NPIA - National Policing Improvement Agency,01/09/2010,IT Information Support,Operations Directorate,Cable & Wireless Communications,5100045781,"2,000.00"
Home Office,NPIA - National Policing Improvement Agency,01/09/2010,IT Information Support,Operations Directorate,Cable & Wireless Communications,5100045781,"1,733.00"
Home Office,NPIA - National Policing Improvement Agency,01/09/2010,IT Information Support,Operations Directorate,Cable & Wireless Communications,5100045781,-0.09
Home Office,NPIA - National Policing Improvement Agency,01/09/2010,IT Information Support,Operations Directorate,Cable & Wireless Communications,5100045781,200
Home Office,NPIA - National Policing Improvement Agency,01/09/2010,IT software,Operations Directorate,Cable & Wireless Communications,5100045781,844.47
Home Office,NPIA - National Policing Improvement Agency,03/09/2010,IT Hardware,ICTS,Logica CMG UK Ltd,5100045825,"40,496.00"
Home Office,NPIA - National Policing Improvement Agency,03/09/2010,IT Hardware,ICTS,Logica CMG UK Ltd,5100045825,"17,255.00"
Home Office,NPIA - National Policing Improvement Agency,03/09/2010,IT Hardware,ICTS,Logica CMG UK Ltd,5100045825,"5,033.00"
Home Office,NPIA - National Policing Improvement Agency,03/09/2010,IT Hardware,ICTS,Logica CMG UK Ltd,5100045825,"21,740.00"
Home Office,NPIA - National Policing Improvement Agency,03/09/2010,IT Hardware,ICTS,Logica CMG UK Ltd,5100045825,"2,565.00"
Home Office,NPIA - National Policing Improvement Agency,03/09/2010,Other consultancy,ICTS,Logica CMG UK Ltd,5100045825,"38,069.00"
Home Office,NPIA - National Policing Improvement Agency,03/09/2010,Other consultancy,ICTS,Logica CMG UK Ltd,5100045825,"5,130.00"
Home Office,NPIA - National Policing Improvement Agency,03/09/2010,IT Managed Services,ICTS,Northgate Information Solutions UK,5100045827,"21,716.00"
Home Office,NPIA - National Policing Improvement Agency,03/09/2010,IT software,ICTS,Northgate Information Solutions UK,5100045829,"25,000.00"
Home Office,NPIA - National Policing Improvement Agency,03/09/2010,IT software,ICTS,Northgate Information Solutions UK,5100045830,"63,000.00"
Home Office,NPIA - National Policing Improvement Agency,03/09/2010,IT Managed Services,ICTS,Airwave Solutions Ltd,5100045653,"22,897.00"
Home Office,NPIA - National Policing Improvement Agency,03/09/2010,IT Hardware,Resources Directorate,Specialist Computer Centres PLC,5100045861,"57,635.46"
Home Office,NPIA - National Policing Improvement Agency,03/09/2010,IT Hardware,Resources Directorate,Specialist Computer Centres PLC,5100045861,"1,008.62"
Home Office,NPIA - National Policing Improvement Agency,03/09/2010,IT Hardware,Resources Directorate,Specialist Computer Centres PLC,5100045861,"7,169.76"
Home Office,NPIA - National Policing Improvement Agency,03/09/2010,IT Hardware,Resources Directorate,Specialist Computer Centres PLC,5100045861,125.47
Home Office,NPIA - National Policing Improvement Agency,03/09/2010,IT Hardware,Resources Directorate,Specialist Computer Centres PLC,5100045861,811.88
Home Office,NPIA - National Policing Improvement Agency,03/09/2010,IT Hardware,Resources Directorate,Specialist Computer Centres PLC,5100045861,14.21
Home Office,NPIA - National Policing Improvement Agency,03/09/2010,IT software,Operations Directorate,Northgate Information Solutions UK,5100045930,"79,286.00"
Home Office,NPIA - National Policing Improvement Agency,06/09/2010,Rent/lease - Offices,Resources Directorate,Executive Communication Centres,5100045669,"24,064.13"
Home Office,NPIA - National Policing Improvement Agency,06/09/2010,FM Costs,Resources Directorate,Executive Communication Centres,5100045669,"8,140.00"
Home Office,NPIA - National Policing Improvement Agency,08/09/2010,IT Hire of equipment,Operations Directorate,Cable & Wireless Communications,5100045782,"3,738.00"
Home Office,NPIA - National Policing Improvement Agency,08/09/2010,IT maintenance,Operations Directorate,Cable & Wireless Communications,5100045782,"6,102.00"
Home Office,NPIA - National Policing Improvement Agency,08/09/2010,IT Information Support,Operations Directorate,Cable & Wireless Communications,5100045782,"87,935.00"
Home Office,NPIA - National Policing Improvement Agency,08/09/2010,IT Information Support,Operations Directorate,Cable & Wireless Communications,5100045782,"2,467.15"
Home Office,NPIA - National Policing Improvement Agency,08/09/2010,IT Information Support,Operations Directorate,Cable & Wireless Communications,5100045782,"2,467.15"
Home Office,NPIA - National Policing Improvement Agency,08/09/2010,IT Information Support,Operations Directorate,Cable & Wireless Communications,5100045782,"2,467.15"
Home Office,NPIA - National Policing Improvement Agency,08/09/2010,IT Information Support,Operations Directorate,Cable & Wireless Communications,5100045782,"2,467.15"
Home Office,NPIA - National Policing Improvement Agency,08/09/2010,IT Information Support,Operations Directorate,Cable & Wireless Communications,5100045782,"2,467.15"
Home Office,NPIA - National Policing Improvement Agency,08/09/2010,IT Information Support,Operations Directorate,Cable & Wireless Communications,5100045782,"2,467.15"
Home Office,NPIA - National Policing Improvement Agency,08/09/2010,IT Information Support,Operations Directorate,Cable & Wireless Communications,5100045782,"2,467.15"
Home Office,NPIA - National Policing Improvement Agency,08/09/2010,IT Information Support,Operations Directorate,Cable & Wireless Communications,5100045782,"2,467.15"
Home Office,NPIA - National Policing Improvement Agency,08/09/2010,IT Information Support,Operations Directorate,Cable & Wireless Communications,5100045782,"2,467.15"
Home Office,NPIA - National Policing Improvement Agency,08/09/2010,IT Information Support,Operations Directorate,Cable & Wireless Communications,5100045782,"2,467.15"
Home Office,NPIA - National Policing Improvement Agency,08/09/2010,IT Information Support,Operations Directorate,Cable & Wireless Communications,5100045782,"2,467.15"
Home Office,NPIA - National Policing Improvement Agency,08/09/2010,IT Information Support,Operations Directorate,Cable & Wireless Communications,5100045782,"2,467.15"
Home Office,NPIA - National Policing Improvement Agency,08/09/2010,IT software,CEO Directorate,Cable & Wireless Communications,5100045835,815.97
Home Office,NPIA - National Policing Improvement Agency,08/09/2010,IT software,CEO Directorate,Cable & Wireless Communications,5100045835,7.19
Home Office,NPIA - National Policing Improvement Agency,08/09/2010,IT Managed Services,CEO Directorate,Cable & Wireless Communications,5100045835,"16,478.41"
Home Office,NPIA - National Policing Improvement Agency,08/09/2010,IT Managed Services,CEO Directorate,Cable & Wireless Communications,5100045835,"12,189.65"
Home Office,NPIA - National Policing Improvement Agency,08/09/2010,IT Managed Services,ICTS,Airwave Solutions Ltd,5100046009,"2,499,000.00"
Home Office,NPIA - National Policing Improvement Agency,08/09/2010,IT Managed Services,ICTS,Airwave Solutions Ltd,5100046009,"1,000.00"
Home Office,NPIA - National Policing Improvement Agency,08/09/2010,Other secondees - Basic salaries,People & Development Directorate,Metropolitan Police Authority Londo,5100044717,"14,102.71"
Home Office,NPIA - National Policing Improvement Agency,08/09/2010,Other secondees - Basic salaries,People & Development Directorate,Metropolitan Police Authority Londo,5100044717,"1,636.33"
Home Office,NPIA - National Policing Improvement Agency,08/09/2010,Other secondees - Basic salaries,People & Development Directorate,Metropolitan Police Authority Londo,5100044717,"1,785.30"
Home Office,NPIA - National Policing Improvement Agency,08/09/2010,Other secondees - Basic salaries,People & Development Directorate,Metropolitan Police Authority Londo,5100044717,272
Home Office,NPIA - National Policing Improvement Agency,08/09/2010,Seconded officer - Basic salaries,Policing Policy and Practice Directorate ,Metropolitan Police Authority Londo,5100044717,"4,368.83"
Home Office,NPIA - National Policing Improvement Agency,08/09/2010,Seconded officer - Basic salaries,Policing Policy and Practice Directorate ,Metropolitan Police Authority Londo,5100044717,281.58
Home Office,NPIA - National Policing Improvement Agency,08/09/2010,Seconded officer - Basic salaries,Policing Policy and Practice Directorate ,Metropolitan Police Authority Londo,5100044717,426.43
Home Office,NPIA - National Policing Improvement Agency,08/09/2010,Seconded officer - Basic salaries,Policing Policy and Practice Directorate ,Metropolitan Police Authority Londo,5100044717,"1,013.79"
Home Office,NPIA - National Policing Improvement Agency,08/09/2010,Seconded officer - Basic salaries,Policing Policy and Practice Directorate ,Metropolitan Police Authority Londo,5100044717,272
Home Office,NPIA - National Policing Improvement Agency,08/09/2010,IT software,CEO Directorate,Cable & Wireless Communications,5100046068,-815.97
Home Office,NPIA - National Policing Improvement Agency,08/09/2010,IT software,CEO Directorate,Cable & Wireless Communications,5100046068,-7.19
Home Office,NPIA - National Policing Improvement Agency,08/09/2010,IT Managed Services,CEO Directorate,Cable & Wireless Communications,5100046068,"-16,478.41"
Home Office,NPIA - National Policing Improvement Agency,08/09/2010,IT Managed Services,CEO Directorate,Cable & Wireless Communications,5100046068,"-12,189.65"
Home Office,NPIA - National Policing Improvement Agency,08/09/2010,IT software,CEO Directorate,Cable & Wireless Communications,5100046069,815.97
Home Office,NPIA - National Policing Improvement Agency,08/09/2010,IT software,CEO Directorate,Cable & Wireless Communications,5100046069,7.19
Home Office,NPIA - National Policing Improvement Agency,08/09/2010,IT Managed Services,CEO Directorate,Cable & Wireless Communications,5100046069,"16,195.00"
Home Office,NPIA - National Policing Improvement Agency,08/09/2010,IT Managed Services,CEO Directorate,Cable & Wireless Communications,5100046069,283.41
Home Office,NPIA - National Policing Improvement Agency,08/09/2010,IT Managed Services,CEO Directorate,Cable & Wireless Communications,5100046069,"12,189.65"
Home Office,NPIA - National Policing Improvement Agency,10/09/2010,IT Managed Services,Operations Directorate,Cable & Wireless Communications,5100045838,"7,246.45"
Home Office,NPIA - National Policing Improvement Agency,10/09/2010,IT Information Support,Operations Directorate,Cable & Wireless Communications,5100045838,"14,880.00"
Home Office,NPIA - National Policing Improvement Agency,10/09/2010,IT Information Support,Operations Directorate,Cable & Wireless Communications,5100045838,"11,904.00"
Home Office,NPIA - National Policing Improvement Agency,10/09/2010,IT Managed Services,Operations Directorate,Cable & Wireless Communications,5100045838,"4,446.00"
Home Office,NPIA - National Policing Improvement Agency,10/09/2010,IT Information Support,Operations Directorate,Specialist Computer Centres PLC,5100045862,"25,196.20"
Home Office,NPIA - National Policing Improvement Agency,10/09/2010,Land and Buildings maintenance,Resources Directorate,GallifordTry Construction Ltd,1900057421,"795,281.82"
Home Office,NPIA - National Policing Improvement Agency,10/09/2010,Land and Buildings maintenance,Resources Directorate,Wates Interiors,1900057427,"127,868.58"
Home Office,NPIA - National Policing Improvement Agency,13/09/2010,Other consultancy,CEO Directorate,Ipsos Mori,5100045053,"69,996.50"
Home Office,NPIA - National Policing Improvement Agency,15/09/2010,IT Hardware,Resources Directorate,Specialist Computer Centres PLC,5100045812,"54,968.08"
Home Office,NPIA - National Policing Improvement Agency,15/09/2010,IT Hardware,Resources Directorate,Specialist Computer Centres PLC,5100045812,274.72
Home Office,NPIA - National Policing Improvement Agency,15/09/2010,Land and Buildings maintenance,Resources Directorate,DTZ Ltd,5100045963,"49,500.00"
Home Office,NPIA - National Policing Improvement Agency,15/09/2010,Land and Buildings maintenance,Resources Directorate,DTZ Ltd,5100045963,866.25
Home Office,NPIA - National Policing Improvement Agency,17/09/2010,Other consultancy,CEO Directorate,Cambridge University Tech Services,5100045530,"44,000.00"
Home Office,NPIA - National Policing Improvement Agency,17/09/2010,Land and Buildings maintenance,Resources Directorate,Jacobs Uk Ltd,1900057526,"25,930.76"
Home Office,NPIA - National Policing Improvement Agency,17/09/2010,Land and Buildings maintenance,Resources Directorate,Building Management Systems,1900057004,"72,199.05"
Home Office,NPIA - National Policing Improvement Agency,17/09/2010,FM Costs,Resources Directorate,Wyboston Lakes Ltd,5100045857,"52,488.73"
Home Office,NPIA - National Policing Improvement Agency,17/09/2010,FM Costs,Resources Directorate,Wyboston Lakes Ltd,5100045857,918.56
Home Office,NPIA - National Policing Improvement Agency,17/09/2010,FM Costs,Resources Directorate,Wyboston Lakes Ltd,5100045857,"2,954.48"
Home Office,NPIA - National Policing Improvement Agency,17/09/2010,FM Costs,Resources Directorate,Wyboston Lakes Ltd,5100045857,51.7
Home Office,NPIA - National Policing Improvement Agency,20/09/2010,IT Information Support,Operations Directorate,Northgate Information Solutions UK,5100045793,"59,449.00"
Home Office,NPIA - National Policing Improvement Agency,20/09/2010,Rent/lease - Offices,Resources Directorate,Mapeley STEPS Ltd,5100046348,"641,711.54"
Home Office,NPIA - National Policing Improvement Agency,20/09/2010,IT Hardware,ICTS,Specialist Computer Centres PLC,5100046422,"7,844.92"
Home Office,NPIA - National Policing Improvement Agency,20/09/2010,IT Hardware,ICTS,Specialist Computer Centres PLC,5100046422,"2,798.12"
Home Office,NPIA - National Policing Improvement Agency,20/09/2010,IT Hardware,ICTS,Specialist Computer Centres PLC,5100046422,"7,631.25"
Home Office,NPIA - National Policing Improvement Agency,20/09/2010,IT Hardware,ICTS,Specialist Computer Centres PLC,5100046422,"2,686.20"
Home Office,NPIA - National Policing Improvement Agency,20/09/2010,IT software,ICTS,Specialist Computer Centres PLC,5100046422,"2,016.12"
Home Office,NPIA - National Policing Improvement Agency,20/09/2010,IT software,ICTS,Specialist Computer Centres PLC,5100046422,"3,540.90"
Home Office,NPIA - National Policing Improvement Agency,20/09/2010,IT software,ICTS,Specialist Computer Centres PLC,5100046422,"5,901.50"
Home Office,NPIA - National Policing Improvement Agency,20/09/2010,IT software,ICTS,Specialist Computer Centres PLC,5100046422,"3,937.72"
Home Office,NPIA - National Policing Improvement Agency,20/09/2010,IT software,ICTS,Specialist Computer Centres PLC,5100046422,"4,426.12"
Home Office,NPIA - National Policing Improvement Agency,20/09/2010,IT software,ICTS,Specialist Computer Centres PLC,5100046422,"1,475.37"
Home Office,NPIA - National Policing Improvement Agency,20/09/2010,IT software,ICTS,Specialist Computer Centres PLC,5100046422,"3,540.92"
Home Office,NPIA - National Policing Improvement Agency,20/09/2010,Agency staff,CEO Directorate,Reed Personnel Services Plc,1900057582,"4,680.50"
Home Office,NPIA - National Policing Improvement Agency,20/09/2010,Agency staff,Resources Directorate,Reed Personnel Services Plc,1900057582,926.4
Home Office,NPIA - National Policing Improvement Agency,20/09/2010,Agency staff,Resources Directorate,Reed Personnel Services Plc,1900057582,775.41
Home Office,NPIA - National Policing Improvement Agency,20/09/2010,Agency staff,Resources Directorate,Reed Personnel Services Plc,1900057582,"1,477.41"
Home Office,NPIA - National Policing Improvement Agency,20/09/2010,Agency staff,Resources Directorate,Reed Personnel Services Plc,1900057582,"2,743.99"
Home Office,NPIA - National Policing Improvement Agency,20/09/2010,Agency staff,CEO Directorate,Reed Personnel Services Plc,1900057582,"2,574.27"
Home Office,NPIA - National Policing Improvement Agency,20/09/2010,Agency staff,Resources Directorate,Reed Personnel Services Plc,1900057582,"26,694.11"
Home Office,NPIA - National Policing Improvement Agency,20/09/2010,Agency staff,Resources Directorate,Reed Personnel Services Plc,1900057582,710.84
Home Office,NPIA - National Policing Improvement Agency,20/09/2010,Agency staff,ICTS,Reed Personnel Services Plc,1900057582,"2,680.85"
Home Office,NPIA - National Policing Improvement Agency,20/09/2010,Land and Buildings maintenance,Resources Directorate,Ellis and Co,1900057420,"136,328.16"
Home Office,NPIA - National Policing Improvement Agency,20/09/2010,Land and Buildings maintenance,Resources Directorate,Building Management Systems,1900057446,"116,301.50"
Home Office,NPIA - National Policing Improvement Agency,20/09/2010,Land and Buildings maintenance,Resources Directorate,GallifordTry Construction Ltd,1900057527,"292,503.47"
Home Office,NPIA - National Policing Improvement Agency,22/09/2010,IT software,Resources Directorate,Specialist Computer Centres PLC,5100045649,"26,544.93"
Home Office,NPIA - National Policing Improvement Agency,22/09/2010,IT software,Resources Directorate,Specialist Computer Centres PLC,5100045649,6.69
Home Office,NPIA - National Policing Improvement Agency,22/09/2010,IT software,ICTS,Northgate Information Solutions UK,5100045931,"25,000.00"
Home Office,NPIA - National Policing Improvement Agency,22/09/2010,IT software,ICTS,Specialist Computer Centres PLC,5100046138,"35,722.77"
Home Office,NPIA - National Policing Improvement Agency,22/09/2010,IT software,ICTS,Specialist Computer Centres PLC,5100046138,"1,021.56"
Home Office,NPIA - National Policing Improvement Agency,22/09/2010,IT software,ICTS,Specialist Computer Centres PLC,5100046138,"6,524.46"
Home Office,NPIA - National Policing Improvement Agency,22/09/2010,IT software,ICTS,Specialist Computer Centres PLC,5100046138,"9,910.25"
Home Office,NPIA - National Policing Improvement Agency,22/09/2010,IT software,ICTS,Specialist Computer Centres PLC,5100046138,"2,391.45"
Home Office,NPIA - National Policing Improvement Agency,22/09/2010,IT software,ICTS,Specialist Computer Centres PLC,5100046138,"5,009.46"
Home Office,NPIA - National Policing Improvement Agency,22/09/2010,IT software,ICTS,Specialist Computer Centres PLC,5100046138,"1,925.15"
Home Office,NPIA - National Policing Improvement Agency,22/09/2010,IT software,ICTS,Specialist Computer Centres PLC,5100046138,"1,164.81"
Home Office,NPIA - National Policing Improvement Agency,22/09/2010,IT software,ICTS,Specialist Computer Centres PLC,5100046138,"3,413.00"
Home Office,NPIA - National Policing Improvement Agency,22/09/2010,Land and Buildings maintenance,Resources Directorate,Ellis and Co,1900055688,"111,257.52"
Home Office,NPIA - National Policing Improvement Agency,24/09/2010,IT consultancy,Operations Directorate,QINETIQ,5100045751,"75,161.00"
Home Office,NPIA - National Policing Improvement Agency,24/09/2010,IT maintenance,Operations Directorate,Specialist Computer Centres PLC,5100046146,"72,052.50"
Home Office,NPIA - National Policing Improvement Agency,24/09/2010,IT maintenance,Operations Directorate,Specialist Computer Centres PLC,5100046146,-2.53
Home Office,NPIA - National Policing Improvement Agency,24/09/2010,IT maintenance,Operations Directorate,Specialist Computer Centres PLC,5100046146,"5,653.20"
Home Office,NPIA - National Policing Improvement Agency,24/09/2010,IT Managed Services,ICTS,Gartner UK Ltd,5100046224,"33,600.00"
Home Office,NPIA - National Policing Improvement Agency,24/09/2010,Airwave Channel Tunnel Service Charge,Operations Directorate,Airwave Solutions Ltd,5100046389,"24,335.91"
Home Office,NPIA - National Policing Improvement Agency,24/09/2010,Airwave in London Underground Service Charge,Operations Directorate,Airwave Solutions Ltd,5100046391,"366,626.25"
Home Office,NPIA - National Policing Improvement Agency,24/09/2010,Airwave Cluster Hot Standby Service Charge,Operations Directorate,Airwave Solutions Ltd,5100046392,"636,906.75"
Home Office,NPIA - National Policing Improvement Agency,24/09/2010,Airwave Cluster Hot Standby Service Charge,Operations Directorate,Airwave Solutions Ltd,5100046393,"88,333.33"
Home Office,NPIA - National Policing Improvement Agency,24/09/2010,Stamford Service Charge,Operations Directorate,Airwave Solutions Ltd,5100046397,"110,668.96"
Home Office,NPIA - National Policing Improvement Agency,24/09/2010,Airwave in London Underground Service Charge,Operations Directorate,Airwave Solutions Ltd,5100046397,"68,641.15"
Home Office,NPIA - National Policing Improvement Agency,24/09/2010,Airwave in London Underground Service Charge,Operations Directorate,Airwave Solutions Ltd,5100046397,"21,098.56"
Home Office,NPIA - National Policing Improvement Agency,24/09/2010,Schengen Service Charge,Operations Directorate,Airwave Solutions Ltd,5100046397,"8,255.81"
Home Office,NPIA - National Policing Improvement Agency,24/09/2010,Firewall Service Charge,Operations Directorate,Airwave Solutions Ltd,5100046397,"25,065.75"
Home Office,NPIA - National Policing Improvement Agency,24/09/2010,IT Hire of equipment,ICTS,The Home Office,1900057258,"23,492.40"
Home Office,NPIA - National Policing Improvement Agency,27/09/2010,Electricity,Resources Directorate,EDF Energy Exeter,1900057093,"42,542.12"
Home Office,NPIA - National Policing Improvement Agency,27/09/2010,Electricity,Resources Directorate,EDF Energy Exeter,1900057093,"4,122.86"
Home Office,NPIA - National Policing Improvement Agency,27/09/2010,Electricity,Resources Directorate,EDF Energy Exeter,1900057093,"16,387.78"
Home Office,NPIA - National Policing Improvement Agency,27/09/2010,Electricity,Resources Directorate,EDF Energy Exeter,1900057093,"14,431.00"
Home Office,NPIA - National Policing Improvement Agency,27/09/2010,Electricity,Resources Directorate,EDF Energy Exeter,1900057093,110.86
Home Office,NPIA - National Policing Improvement Agency,27/09/2010,Electricity,Resources Directorate,EDF Energy Exeter,1900057093,"3,493.47"
Home Office,NPIA - National Policing Improvement Agency,28/09/2010,IT consultancy,Policing Policy and Practice Directorate ,SYSTEMS CONSULTANTS SERVICES LTD,5100046484,"28,661.74"
Home Office,NPIA - National Policing Improvement Agency,28/09/2010,IT software,ICTS,Northgate Information Solutions UK,5100046668,"63,000.00"
Home Office,NPIA - National Policing Improvement Agency,28/09/2010,IT Information Support,Operations Directorate,Software AG UK Ltd,5100046746,"1,481,986.00"
Home Office,NPIA - National Policing Improvement Agency,28/09/2010,IT Information Support,Operations Directorate,Software AG UK Ltd,5100046746,"259,347.55"
Home Office,NPIA - National Policing Improvement Agency,28/09/2010,IT Information Support,Operations Directorate,Software AG UK Ltd,5100046746,"63,000.00"
Home Office,NPIA - National Policing Improvement Agency,28/09/2010,IT Information Support,Operations Directorate,Software AG UK Ltd,5100046746,"11,025.00"
Home Office,NPIA - National Policing Improvement Agency,28/09/2010,IT software,ICTS,Northgate Information Solutions UK,5100046778,"25,000.00"
Home Office,Home Office,02/09/2010,Professional & Admin Services.Seconded in Staff costs - PROG,OSCT - Office of Security and Counter-Terrorism,METROPOLITAN POLICE AUTHORITY,1790049,"94,417.61"
Home Office,Home Office,06/09/2010,Grant,OSCT - Office of Security and Counter-Terrorism,THAMES VALLEY POLICE (G),495316,"84,824.00"
Home Office,Home Office,06/09/2010,Grant,OSCT - Office of Security and Counter-Terrorism,ACPO (G),495302,"205,205.00"
Home Office,Home Office,06/09/2010,IT & Telecommunications.IT & Telecommunications,OSCT - Office of Security and Counter-Terrorism,HEWLETT PACKARD,1695940,"149,296.68"
Home Office,Home Office,21/09/2010,Storage & Mail Services.Messenger & Reception Services,OSCT - Office of Security and Counter-Terrorism,CT CENTRE (MOD) T/A DSTL,1774602,"727,051.82"
Home Office,Home Office,21/09/2010,Storage & Mail Services.Messenger & Reception Services,OSCT - Office of Security and Counter-Terrorism,CT CENTRE (MOD) T/A DSTL,1792364,"515,958.06"
Home Office,Home Office,27/09/2010,Healthcare Services.Healthcare Services - PROG,OSCT - Office of Security and Counter-Terrorism,DEPARTMENT OF AGRICULTURE AND RURAL DEVELOPMENT (DARD),1783874,"36,792.31"
Home Office,Home Office,28/09/2010,Grant,OSCT - Office of Security and Counter-Terrorism,NORTH HERTFORDSHIRE COLLEGE (G),531710,"162,129.00"
Home Office,Home Office,30/09/2010,Healthcare Services.Healthcare Services - PROG,OSCT - Office of Security and Counter-Terrorism,CT CENTRE (MOD) T/A DSTL,1814312,"45,602.56"
Home Office,Home Office,30/09/2010,Professional & Admin Services.Consultant - Imp & Del - PROG,OSCT - Office of Security and Counter-Terrorism,KPMG,1818141,"72,894.65"
Home Office,SIA - Security Industry Authority,01/09/2010,Legal Costs,Legal costs,Kingsley Napley,CKIN02,"45,595.88"
Home Office,SIA - Security Industry Authority,08/09/2010,CRB Disclosures,Licensing,CRB,CCRB01,"231,997.00"
Home Office,SIA - Security Industry Authority,15/09/2010,Audit ,Finance,NAO,CNAO01,"35,000.00"
Home Office,SIA - Security Industry Authority,22/09/2010,Rental ,Office services ,IPCC,CIPC01,"268,504.00"
Home Office,SOCA - Serious Organised Crime Agency,01/09/2010,Professional Services and Fees,Corporate Services,BADENOCH & CLARK LIMITED,50402,"54,232.31"
Home Office,SOCA - Serious Organised Crime Agency,01/09/2010,Professional Services and Fees,Investment Board,BADENOCH & CLARK LIMITED,50402,"2,250.72"
Home Office,SOCA - Serious Organised Crime Agency,01/09/2010,Salaries and Allowances - temporarily employed,Investment Board,BADENOCH & CLARK LIMITED,50402,"23,677.70"
Home Office,SOCA - Serious Organised Crime Agency,01/09/2010,Professional Services and Fees,Projects,BADENOCH & CLARK LIMITED,50402,"37,205.86"
Home Office,SOCA - Serious Organised Crime Agency,01/09/2010,Property Plant & Equipment,Investment Board,SERCO,50407,"53,454.28"
Home Office,SOCA - Serious Organised Crime Agency,01/09/2010,IT Expenses,Intelligence,LOGICA UK LTD,50428,"75,200.00"
Home Office,SOCA - Serious Organised Crime Agency,02/09/2010,IT Expenses,Corporate Services,CAPITA BUSINESS SERVICES LTD,50588,"454,921.27"
Home Office,SOCA - Serious Organised Crime Agency,02/09/2010,PFI Contract Charges,Corporate Services,SERCO,50590,"72,095.79"
Home Office,SOCA - Serious Organised Crime Agency,06/09/2010,Salaries and Allowances -Seconded Officers,Enforcement,SOUTH YORKSHIRE POLICE AUTH.,50660,"31,901.61"
Home Office,SOCA - Serious Organised Crime Agency,07/09/2010,IT Expenses,Corporate Services,NPIA,50737,"29,714.22"
Home Office,SOCA - Serious Organised Crime Agency,07/09/2010,Salaries and Allowances - temporarily employed,Intervention,ADECCO ALFRED MARKS,50783,"20,228.63"
Home Office,SOCA - Serious Organised Crime Agency,07/09/2010,Salaries and Allowances - temporarily employed,Enforcement,ADECCO ALFRED MARKS,50783,"5,510.19"
Home Office,SOCA - Serious Organised Crime Agency,07/09/2010,Salaries and Allowances - temporarily employed,Intelligence,ADECCO ALFRED MARKS,50783,899.37
Home Office,SOCA - Serious Organised Crime Agency,07/09/2010,Salaries and Allowances - temporarily employed,Corporate Services,ADECCO ALFRED MARKS,50783,"6,807.63"
Home Office,SOCA - Serious Organised Crime Agency,07/09/2010,Salaries and Allowances - temporarily employed,Central & Hosted Services,ADECCO ALFRED MARKS,50783,870.56
Home Office,SOCA - Serious Organised Crime Agency,07/09/2010,Salaries and Allowances - temporarily employed,CEOP,ADECCO ALFRED MARKS,50783,"5,185.28"
Home Office,SOCA - Serious Organised Crime Agency,07/09/2010,Salaries and Allowances - temporarily employed,Investment Board,ADECCO ALFRED MARKS,50783,"1,772.04"
Home Office,SOCA - Serious Organised Crime Agency,08/09/2010,Professional Services and Fees,Projects,BDO STOY HAYWARD,50822,"51,478.38"
Home Office,SOCA - Serious Organised Crime Agency,08/09/2010,PFI Contract Charges,Investment Board,SERCO,50836,"172,302.22"
Home Office,SOCA - Serious Organised Crime Agency,08/09/2010,PFI Contract Charges,Investment Board,SERCO,50851,"120,309.43"
Home Office,SOCA - Serious Organised Crime Agency,08/09/2010,Premises,Corporate Services,KIER BUILDING SERVICES,50945,"119,829.92"
Home Office,SOCA - Serious Organised Crime Agency,08/09/2010,Forensic Fees,Intelligence,FORENSIC SCIENCE SERVICE,50963,"32,241.82"
Home Office,SOCA - Serious Organised Crime Agency,09/09/2010,IT Expenses,Corporate Services,C.E.S.G,51000,"74,191.85"
Home Office,SOCA - Serious Organised Crime Agency,10/09/2010,Property Plant & Equipment,Corporate Services,LOGICA UK LTD,51065,"85,557.63"
Home Office,SOCA - Serious Organised Crime Agency,10/09/2010,Premises,Corporate Services,EDF ENERGY DUST FIELD SERVICES,51090,"34,514.18"
Home Office,SOCA - Serious Organised Crime Agency,13/09/2010,Property Plant & Equipment,Investment Board,WATES INTERIORS LTD,51312,"489,975.00"
Home Office,SOCA - Serious Organised Crime Agency,13/09/2010,Property Plant & Equipment,Investment Board,WATES INTERIORS LTD,51313,"271,425.00"
Home Office,SOCA - Serious Organised Crime Agency,14/09/2010,IT Expenses,Corporate Services,FOREIGN & COMMONWEALTH OFFICE,51379,"113,375.50"
Home Office,SOCA - Serious Organised Crime Agency,14/09/2010,IT Expenses,Corporate Services,L-3 COMMUNICATIONS ASA LTD,51425,"220,312.50"
Home Office,SOCA - Serious Organised Crime Agency,14/09/2010,IT Expenses,Corporate Services,L-3 COMMUNICATIONS ASA LTD,51428,"28,252.88"
Home Office,SOCA - Serious Organised Crime Agency,15/09/2010,Professional Services and Fees,Investment Board,DELOITTE MCS,51452,"76,053.64"
Home Office,SOCA - Serious Organised Crime Agency,15/09/2010,IT Expenses,Corporate Services,SCC PLC,51488,"47,689.06"
Home Office,SOCA - Serious Organised Crime Agency,15/09/2010,Premises,Corporate Services,KIER BUILDING SERVICES,51557,"61,228.19"
Home Office,SOCA - Serious Organised Crime Agency,16/09/2010,Salaries and Allowances -Seconded Officers,Central & Hosted Services,DEFRA,51681,"25,989.42"
Home Office,SOCA - Serious Organised Crime Agency,16/09/2010,Professional Services and Fees,Corporate Services,LA INT'L COMPUTER CONSULTANTS,51685,"39,780.06"
Home Office,SOCA - Serious Organised Crime Agency,17/09/2010,Professional Services and Fees,Intelligence,ELAN COMPUTING LTD,51775,"9,264.21"
Home Office,SOCA - Serious Organised Crime Agency,17/09/2010,Professional Services and Fees,Corporate Services,ELAN COMPUTING LTD,51775,"33,061.38"
Home Office,SOCA - Serious Organised Crime Agency,17/09/2010,Professional Services and Fees,Investment Board,ELAN COMPUTING LTD,51775,"6,002.84"
Home Office,SOCA - Serious Organised Crime Agency,21/09/2010,Professional Services and Fees,Corporate Services,BADENOCH & CLARK LIMITED,52163,"32,749.49"
Home Office,SOCA - Serious Organised Crime Agency,21/09/2010,PFI Contract Charges,CEOP,SERCO,52175,"32,893.51"
Home Office,SOCA - Serious Organised Crime Agency,21/09/2010,Operational and Communications Costs,Projects,FCO SERVICES,52186,"26,948.04"
Home Office,SOCA - Serious Organised Crime Agency,21/09/2010,Property Plant & Equipment,Projects,LOGICA UK LTD,52194,"44,271.65"
Home Office,SOCA - Serious Organised Crime Agency,21/09/2010,Salaries and Allowances - temporarily employed,Intervention,ADECCO ALFRED MARKS,52218,"46,495.87"
Home Office,SOCA - Serious Organised Crime Agency,21/09/2010,Salaries and Allowances - temporarily employed,Enforcement,ADECCO ALFRED MARKS,52218,"11,151.33"
Home Office,SOCA - Serious Organised Crime Agency,21/09/2010,Salaries and Allowances - temporarily employed,Intelligence,ADECCO ALFRED MARKS,52218,"2,800.73"
Home Office,SOCA - Serious Organised Crime Agency,21/09/2010,Salaries and Allowances - temporarily employed,Corporate Services,ADECCO ALFRED MARKS,52218,"39,402.63"
Home Office,SOCA - Serious Organised Crime Agency,21/09/2010,Salaries and Allowances - temporarily employed,Central & Hosted Services,ADECCO ALFRED MARKS,52218,"3,212.27"
Home Office,SOCA - Serious Organised Crime Agency,21/09/2010,Salaries and Allowances - temporarily employed,CEOP,ADECCO ALFRED MARKS,52218,"18,752.10"
Home Office,SOCA - Serious Organised Crime Agency,21/09/2010,Salaries and Allowances - temporarily employed,Investment Board,ADECCO ALFRED MARKS,52218,"10,860.37"
Home Office,SOCA - Serious Organised Crime Agency,21/09/2010,"Accommodation, Subsistence & General Expenses",Intervention,BARCLAYCARD,52221,"41,421.99"
Home Office,SOCA - Serious Organised Crime Agency,21/09/2010,"Accommodation, Subsistence & General Expenses",Enforcement,BARCLAYCARD,52221,"19,056.66"
Home Office,SOCA - Serious Organised Crime Agency,21/09/2010,"Accommodation, Subsistence & General Expenses",Intelligence,BARCLAYCARD,52221,"18,843.90"
Home Office,SOCA - Serious Organised Crime Agency,21/09/2010,"Accommodation, Subsistence & General Expenses",Corporate Services,BARCLAYCARD,52221,"5,638.39"
Home Office,SOCA - Serious Organised Crime Agency,21/09/2010,"Accommodation, Subsistence & General Expenses",Central & Hosted Services,BARCLAYCARD,52221,108.55
Home Office,SOCA - Serious Organised Crime Agency,21/09/2010,"Accommodation, Subsistence & General Expenses",CEOP,BARCLAYCARD,52221,"6,147.33"
Home Office,SOCA - Serious Organised Crime Agency,21/09/2010,"Accommodation, Subsistence & General Expenses",Investment Board,BARCLAYCARD,52221,122.07
Home Office,SOCA - Serious Organised Crime Agency,21/09/2010,"Accommodation, Subsistence & General Expenses",Projects,BARCLAYCARD,52221,"10,625.34"
Home Office,SOCA - Serious Organised Crime Agency,21/09/2010,Professional Services and Fees,Corporate Services,LA INT'L COMPUTER CONSULTANTS,52222,"26,061.50"
Home Office,SOCA - Serious Organised Crime Agency,21/09/2010,Operational and Communications Costs,Intelligence,REVENUE FINANCE BANKING SERVIC,52225,"35,333.95"
Home Office,SOCA - Serious Organised Crime Agency,21/09/2010,PFI Contract Charges,Corporate Services,SERCO,52233,"1,663,657.31"
Home Office,SOCA - Serious Organised Crime Agency,21/09/2010,PFI Contract Charges,CEOP,SERCO,52233,"30,768.95"
Home Office,SOCA - Serious Organised Crime Agency,21/09/2010,PFI Contract Charges,Investment Board,SERCO,52233,"142,855.32"
Home Office,UKBA - UK Borders Agency,01/09/2010,"Public Order, Security, Safety.Security Guard Services - PROG",UKBA - UK Borders Agency,EAMUS CORK SOLUTIONS,1796653,"152,317.14"
Home Office,UKBA - UK Borders Agency,01/09/2010,Professional & Admin Services.Visa Processing Services,UKBA - UK Borders Agency,VF WORLDWIDE HOLDINGS LTD,1796661,"72,603.00"
Home Office,UKBA - UK Borders Agency,01/09/2010,Professional & Admin Services.Visa Processing Services,UKBA - UK Borders Agency,VF WORLDWIDE HOLDINGS LTD,1797193,"57,416.00"
Home Office,UKBA - UK Borders Agency,01/09/2010,Professional & Admin Services.Visa Processing Services,UKBA - UK Borders Agency,VF WORLDWIDE HOLDINGS LTD,1796634,"45,241.00"
Home Office,UKBA - UK Borders Agency,02/09/2010,Politics & Civic Affairs.Human aid & relief Sect 4,UKBA - UK Borders Agency,UNITED PROPERTY MANAGEMENT,1796292,"669,195.08"
Home Office,UKBA - UK Borders Agency,02/09/2010,Politics & Civic Affairs.Human aid & relief Sect 4,UKBA - UK Borders Agency,MANCHESTER CITY COUNCIL,1797580,"600,074.21"
Home Office,UKBA - UK Borders Agency,02/09/2010,Politics & Civic Affairs.Human aid & relief Sect 4,UKBA - UK Borders Agency,UNITED PROPERTY MANAGEMENT,1796283,"574,031.48"
Home Office,UKBA - UK Borders Agency,02/09/2010,Politics & Civic Affairs.Human aid & relief Sect 4,UKBA - UK Borders Agency,HAPPY HOMES UK LTD,1797203,"528,248.13"
Home Office,UKBA - UK Borders Agency,02/09/2010,IT & Telecoms Components.Computer Equip (FA),UKBA - UK Borders Agency,IBM DIRECT UNITED KINGDOM LTD,1797228,"523,027.75"
Home Office,UKBA - UK Borders Agency,02/09/2010,Professional & Admin Services.Corp Business IT Serv - PROG,UKBA - UK Borders Agency,SERCO  LTD,1790781,"301,824.60"
Home Office,UKBA - UK Borders Agency,02/09/2010,Politics & Civic Affairs.Human aid & relief Sect 4,UKBA - UK Borders Agency,UNITED PROPERTY MANAGEMENT,1796289,"259,347.01"
Home Office,UKBA - UK Borders Agency,02/09/2010,Politics & Civic Affairs.Human aid & relief Sect 4,UKBA - UK Borders Agency,CLEARSPRINGS MANAGEMENT LTD,1796189,"173,388.37"
Home Office,UKBA - UK Borders Agency,02/09/2010,Politics & Civic Affairs.Human aid & relief Sect 4,UKBA - UK Borders Agency,NORTHERN IRELAND HOUSING EXEC,1797252,"155,685.65"
Home Office,UKBA - UK Borders Agency,02/09/2010,Storage & Mail Services.Messenger & Reception Services,UKBA - UK Borders Agency,REFUGEE COUNCIL,1796518,"74,899.00"
Home Office,UKBA - UK Borders Agency,02/09/2010,IT & Telecoms Components.Computer Equip (FA),UKBA - UK Borders Agency,IBM DIRECT UNITED KINGDOM LTD,1797226,"56,522.20"
Home Office,UKBA - UK Borders Agency,02/09/2010,IT & Telecoms Components.Computer Equip (FA),UKBA - UK Borders Agency,SPECIALIST COMPUTER CENTRES PLC,1762808,"31,454.76"
Home Office,UKBA - UK Borders Agency,02/09/2010,Asylum Provision.Asylum Cont Out Serv,UKBA - UK Borders Agency,SCOTTISH REFUGEE COUNCIL ( SCOTLAND ),1797273,"27,666.00"
Home Office,UKBA - UK Borders Agency,02/09/2010,"Public Order, Security Service.Detention Services Contracts",UKBA - UK Borders Agency,SERCO  LTD,1781605,"151,543.78"
Home Office,UKBA - UK Borders Agency,02/09/2010,Publishing & Media Design Serv.Print Engrave & Photocopy-PROG,UKBA - UK Borders Agency,3M SECURITY PRINTING & SYSTEMS LTD,1794313,"30,174.00"
Home Office,UKBA - UK Borders Agency,02/09/2010,Asylum Services.Public Expense Removals,UKBA - UK Borders Agency,CARLSON WAGONLIT TRAVEL,1796364,"209,350.00"
Home Office,UKBA - UK Borders Agency,02/09/2010,Asylum Services.Public Expense Removals,UKBA - UK Borders Agency,CARLSON WAGONLIT TRAVEL,1797425,"145,348.98"
Home Office,UKBA - UK Borders Agency,02/09/2010,Asylum Services.Public Expense Removals,UKBA - UK Borders Agency,CARLSON WAGONLIT TRAVEL,1797421,"129,697.49"
Home Office,UKBA - UK Borders Agency,02/09/2010,Public Order.Voluntary Assisted Return,UKBA - UK Borders Agency,CITIBANK INTERNATIONAL PLC,1797310,"125,000.00"
Home Office,UKBA - UK Borders Agency,02/09/2010,Defense & Law Enforcement.Police Liaison Officers,UKBA - UK Borders Agency,THE METROPOLITAN POLICE,1796209,"123,278.83"
Home Office,UKBA - UK Borders Agency,02/09/2010,Asylum Services.Public Expense Removals,UKBA - UK Borders Agency,CARLSON WAGONLIT TRAVEL,1797355,"75,657.92"
Home Office,UKBA - UK Borders Agency,02/09/2010,Defense & Law Enforcement.Police Liaison Officers,UKBA - UK Borders Agency,NOTTINGHAMSHIRE POLICE AUTHORITY 1,1788922,"62,285.42"
Home Office,UKBA - UK Borders Agency,02/09/2010,Defense & Law Enforcement.Police Liaison Officers,UKBA - UK Borders Agency,STRATHCLYDE POLICE,1797673,"33,927.89"
Home Office,UKBA - UK Borders Agency,02/09/2010,Asylum Services.Public Expense Removals,UKBA - UK Borders Agency,CARLSON WAGONLIT TRAVEL,1796362,"29,519.77"
Home Office,UKBA - UK Borders Agency,02/09/2010,Defense & Law Enforcement.Police Liaison Officers,UKBA - UK Borders Agency,LEICESTERSHIRE CONSTABULARY,1796358,"29,071.76"
Home Office,UKBA - UK Borders Agency,02/09/2010,Defense & Law Enforcement.Police Liaison Officers,UKBA - UK Borders Agency,GREATER MANCHESTER POLICE,1795716,"27,613.59"
Home Office,UKBA - UK Borders Agency,02/09/2010,"Print, Photo, Audio & Visual",UKBA - UK Borders Agency,FCO SERVICES,6021971,"217,086.80"
Home Office,UKBA - UK Borders Agency,03/09/2010,Grant,UKBA - UK Borders Agency,QED-UK (G),476954,"152,286.00"
Home Office,UKBA - UK Borders Agency,03/09/2010,Politics & Civic Affairs.Displaced pers.assistance,UKBA - UK Borders Agency,SODEXHO PASS LTD,1798441,"1,024,135.35"
Home Office,UKBA - UK Borders Agency,03/09/2010,Politics & Civic Affairs.Human aid & relief Sect 4,UKBA - UK Borders Agency,METROPOLITAN SUPPORT TRUST (EAST MIDLANDS),1798498,"377,527.55"
Home Office,UKBA - UK Borders Agency,03/09/2010,Asylum Provision.Asylum serv Sect4Vouchers,UKBA - UK Borders Agency,SODEXHO PASS LTD,1798165,"245,510.58"
Home Office,UKBA - UK Borders Agency,03/09/2010,Management & Admin Serv.Corp & Bus Org Structure- PROG,UKBA - UK Borders Agency,SERCO  LTD,1782025,"70,102.85"
Home Office,UKBA - UK Borders Agency,03/09/2010,"IT, Broadcasting & Telecomms.IT Run Costs Other - ADMN",UKBA - UK Borders Agency,FUJITSU SERVICES LTD,1784003,"83,878.55"
Home Office,UKBA - UK Borders Agency,03/09/2010,"Transport, Storage & Mail Serv.Document Storage Serv - ADMN",UKBA - UK Borders Agency,IRON MOUNTAIN (UK) LTD,1783252,"579,620.97"
Home Office,UKBA - UK Borders Agency,03/09/2010,"Transport, Storage & Mail Serv.Fuel & Vehicle Supp Serv- PROG",UKBA - UK Borders Agency,ARVAL UK LTD,1798446,"28,476.94"
Home Office,UKBA - UK Borders Agency,03/09/2010,Professional & Admin Services.Business admin services,UKBA - UK Borders Agency,DRIVER AND VEHICLE LICENSING AGENCY (DVLA),9300085165,"56,244.62"
Home Office,UKBA - UK Borders Agency,03/09/2010,Professional & Admin Services.Business admin services,UKBA - UK Borders Agency,DRIVER AND VEHICLE LICENSING AGENCY (DVLA),9300085163,"46,823.34"
Home Office,UKBA - UK Borders Agency,03/09/2010,Professional & Admin Services.Business admin services,UKBA - UK Borders Agency,DRIVER AND VEHICLE LICENSING AGENCY (DVLA),9300085162,"63,452.46"
Home Office,UKBA - UK Borders Agency,03/09/2010,"IT, Broadcasting & Telecomms",UKBA - UK Borders Agency,OGC BUYING SOLUTIONS,SINMSD8157,"46,118.75"
Home Office,UKBA - UK Borders Agency,03/09/2010,OGD RFT,UKBA - UK Borders Agency,TREASURY SOLICITOR CLIENT MONIES,AH700,"97,055.07"
Home Office,UKBA - UK Borders Agency,06/09/2010,IT & Telecoms Components.Computer Equip (FA),UKBA - UK Borders Agency,SPECIALIST COMPUTER CENTRES PLC,1799344,"84,930.18"
Home Office,UKBA - UK Borders Agency,06/09/2010,Storage & Mail Services.Messenger & Reception Services,UKBA - UK Borders Agency,SIEMENS BUSINESS SERVICES LTD,1784905,"75,312.37"
Home Office,UKBA - UK Borders Agency,06/09/2010,"IT, Broadcasting & Telecomms.IT Run Costs Other - ADMN",UKBA - UK Borders Agency,FUJITSU SERVICES LTD,1785402,"514,470.22"
Home Office,UKBA - UK Borders Agency,06/09/2010,Law Enforcement & safety Equip.Maint&Rep of Plant&Mach�PROG,UKBA - UK Borders Agency,SAIC LIMITED,1727918,"34,547.35"
Home Office,UKBA - UK Borders Agency,06/09/2010,Professional & Admin Services.Visa Processing Services,UKBA - UK Borders Agency,VF WORLDWIDE HOLDINGS LTD,1799231,"50,544.00"
Home Office,UKBA - UK Borders Agency,06/09/2010,Professional & Admin Services.Visa Processing Services,UKBA - UK Borders Agency,VF WORLDWIDE HOLDINGS LTD,1799236,"42,483.00"
Home Office,UKBA - UK Borders Agency,07/09/2010,Grant,UKBA - UK Borders Agency,IOM INTERNATIONAL ORGANIZATION FOR,1/RT0379,"2,830,371.00"
Home Office,UKBA - UK Borders Agency,07/09/2010,Politics & Civic Affairs.Human aid & relief Sect 4,UKBA - UK Borders Agency,ANGEL GROUP,1800193,"485,266.92"
Home Office,UKBA - UK Borders Agency,07/09/2010,Politics & Civic Affairs.Human aid & relief Sect 4,UKBA - UK Borders Agency,ANGEL GROUP,1800195,"229,890.54"
Home Office,UKBA - UK Borders Agency,07/09/2010,Politics & Civic Affairs.Human aid & relief Sect 4,UKBA - UK Borders Agency,ANGEL GROUP,1800191,"117,858.30"
Home Office,UKBA - UK Borders Agency,07/09/2010,Asylum Provision.Asylum Cont Out Serv,UKBA - UK Borders Agency,LEEDS CITY COUNCIL,1800452,"55,085.00"
Home Office,UKBA - UK Borders Agency,07/09/2010,Asylum Provision.Asylum Cont Out Serv,UKBA - UK Borders Agency,REFUGEE COUNCIL,1800196,"39,480.00"
Home Office,UKBA - UK Borders Agency,07/09/2010,Asylum Provision.Asylum accom Sect 98,UKBA - UK Borders Agency,SERCO  LTD,1800185,"90,874.38"
Home Office,UKBA - UK Borders Agency,07/09/2010,IT & Telecoms Components.Computer Equip (FA),UKBA - UK Borders Agency,SERCO  LTD,1797424,"118,460.93"
Home Office,UKBA - UK Borders Agency,07/09/2010,"Science, Technical & Research.Computer services - PROG",UKBA - UK Borders Agency,ATOS ORIGIN IT SERVICES UK LIMITED- MEDICAL SERVICES,1790603,"26,437.50"
Home Office,UKBA - UK Borders Agency,08/09/2010,Politics & Civic Affairs.Displaced pers.assistance,UKBA - UK Borders Agency,SODEXHO PASS LTD,1802137,"1,015,590.42"
Home Office,UKBA - UK Borders Agency,08/09/2010,Politics & Civic Affairs.Human aid & relief Sect 4,UKBA - UK Borders Agency,NEWCASTLE CITY COUNCIL,1801343,"556,374.41"
Home Office,UKBA - UK Borders Agency,08/09/2010,Politics & Civic Affairs.Displaced pers.assistance,UKBA - UK Borders Agency,SODEXHO PASS LTD,1801451,"263,296.32"
Home Office,UKBA - UK Borders Agency,08/09/2010,"Public Order, Security, Safety.Security Guard Services - PROG",UKBA - UK Borders Agency,OCS GROUP UK LTD,1801349,"154,343.26"
Home Office,UKBA - UK Borders Agency,08/09/2010,"Transport, Storage & Mail Serv.Mailing, Mail Delivery Service",UKBA - UK Borders Agency,FRANCOTYP-POSTALIA LIMITED,1802052,"40,000.00"
Home Office,UKBA - UK Borders Agency,08/09/2010,REPATRIATION SERVICES.ESCORT SERVICES,UKBA - UK Borders Agency,IOM INTERNATIONAL ORGANIZATION FOR MIGRATION,1801535,"2,830,371.00"
Home Office,UKBA - UK Borders Agency,08/09/2010,Asylum Services.Public Expense Removals,UKBA - UK Borders Agency,CARLSON WAGONLIT TRAVEL,1802068,"105,288.43"
Home Office,UKBA - UK Borders Agency,08/09/2010,Asylum Services.Public Expense Removals,UKBA - UK Borders Agency,CARLSON WAGONLIT TRAVEL,1802071,"53,864.72"
Home Office,UKBA - UK Borders Agency,08/09/2010,Asylum Provision.Asylumserv AsylumSker Trv,UKBA - UK Borders Agency,CENTRO,1799369,"46,800.00"
Home Office,UKBA - UK Borders Agency,08/09/2010,Asylum Services.Public Expense Removals,UKBA - UK Borders Agency,CARLSON WAGONLIT TRAVEL,1801329,"45,150.00"
Home Office,UKBA - UK Borders Agency,09/09/2010,Politics & Civic Affairs.REFUGEE PROG. SECT 95,UKBA - UK Borders Agency,CITY AND COUNTY OF SWANSEA,1802427,"69,082.72"
Home Office,UKBA - UK Borders Agency,09/09/2010,"Public Order, Security, Safety.Domestic Escort Services",UKBA - UK Borders Agency,G4S CARE & JUSTICE SERVICES (UK) LTD,1777733,"66,115.02"
Home Office,UKBA - UK Borders Agency,09/09/2010,Office Equip and Consumables.Multifunction equip & accessor,UKBA - UK Borders Agency,RICOH UK LTD,1802314,"335,449.40"
Home Office,UKBA - UK Borders Agency,09/09/2010,Storage & Mail Services.Messenger & Reception Services,UKBA - UK Borders Agency,MM TELEPERFORMANCE LTD T/A TELEPERFORMANCE,1779921,"38,675.08"
Home Office,UKBA - UK Borders Agency,09/09/2010,Law Enforcement & safety Equip.Surveillance & Det Equip- PROG,UKBA - UK Borders Agency,FR AVIATION LTD,1786816,"317,976.74"
Home Office,UKBA - UK Borders Agency,09/09/2010,Travel & Food & Lodging.Juxtaposed Oversea Trav�PROG,UKBA - UK Borders Agency,THE CHANNEL TUNNEL GROUP LTD,1799186,"66,795.00"
Home Office,UKBA - UK Borders Agency,09/09/2010,Asylum Services.Public Expense Removals,UKBA - UK Borders Agency,CARLSON WAGONLIT TRAVEL,1802956,"254,061.44"
Home Office,UKBA - UK Borders Agency,09/09/2010,"IT, Broadcasting & Telecomms.Software - PROG",UKBA - UK Borders Agency,COMPUTACENTER (UK) LTD,1802414,"144,121.43"
Home Office,UKBA - UK Borders Agency,09/09/2010,Professional & Admin Services.Consultancy - Advice - PROG,UKBA - UK Borders Agency,TRIBAL HELM CORPORATION LTD,1802271,"120,443.10"
Home Office,UKBA - UK Borders Agency,09/09/2010,OGD RFT,UKBA - UK Borders Agency,TREASURY SOLICITORS OFFICE,102364,"36,126.56"
Home Office,UKBA - UK Borders Agency,09/09/2010,OGD RFT,UKBA - UK Borders Agency,TREASURY SOLICITORS OFFICE,102363,"86,908.05"
Home Office,UKBA - UK Borders Agency,09/09/2010,OGD RFT,UKBA - UK Borders Agency,TREASURY SOLICITOR CLIENT MONIES,AH702,"157,012.13"
Home Office,UKBA - UK Borders Agency,09/09/2010,OGD RFT,UKBA - UK Borders Agency,TREASURY SOLICITORS OFFICE,102362,"1,856,264.50"
Home Office,UKBA - UK Borders Agency,10/09/2010,Grant,UKBA - UK Borders Agency,WEST SUSSEX COUNTY COUNCIL 1 (G),8000748325,"62,822.00"
Home Office,UKBA - UK Borders Agency,10/09/2010,Asylum Provision.Asylum serv Sect4Vouchers,UKBA - UK Borders Agency,SODEXHO PASS LTD,1803155,"270,756.77"
Home Office,UKBA - UK Borders Agency,10/09/2010,Asylum Provision.Asylum serv Sect4Vouchers,UKBA - UK Borders Agency,SODEXHO PASS LTD,1803288,"87,746.42"
Home Office,UKBA - UK Borders Agency,10/09/2010,Storage & Mail Services.Messenger & Reception Services,UKBA - UK Borders Agency,REFUGEE COUNCIL,1795752,"74,520.00"
Home Office,UKBA - UK Borders Agency,10/09/2010,"Public Order, Security Service.Detention Services Contracts",UKBA - UK Borders Agency,SERCO  LTD,1800189,"2,143,947.19"
Home Office,UKBA - UK Borders Agency,10/09/2010,"Public Order, Security Service.Detention Services Contracts",UKBA - UK Borders Agency,SERCO  LTD,1800187,"897,746.31"
Home Office,UKBA - UK Borders Agency,10/09/2010,"Public Order, Security Service.Detention Services Contracts",UKBA - UK Borders Agency,SERCO  LTD,1801400,"153,078.87"
Home Office,UKBA - UK Borders Agency,10/09/2010,"Public Order, Security, Safety.Confinement Surveillance",UKBA - UK Borders Agency,SERCO  LTD,1803395,"92,751.73"
Home Office,UKBA - UK Borders Agency,10/09/2010,"Public Order, Security, Safety.Domestic Escort Services",UKBA - UK Borders Agency,G4S CARE & JUSTICE SERVICES (UK) LTD,1777738,"45,845.70"
Home Office,UKBA - UK Borders Agency,10/09/2010,Management & Admin Serv.Overseas Posting Costs-PROG,UKBA - UK Borders Agency,CROWN RELOCATIONS,1804257,"114,968.00"
Home Office,UKBA - UK Borders Agency,10/09/2010,"IT, Broadcasting & Telecomms.IT Run Costs Other - ADMN",UKBA - UK Borders Agency,ATOS ORIGIN IT SERVICES UK LIMITED- MEDICAL SERVICES,1773150,"68,052.48"
Home Office,UKBA - UK Borders Agency,10/09/2010,IT & Telecoms Components.Computer Equip (FA),UKBA - UK Borders Agency,SERCO  LTD,1797686,"91,719.33"
Home Office,UKBA - UK Borders Agency,10/09/2010,Asylum Services.Public Expense Removals,UKBA - UK Borders Agency,CARLSON WAGONLIT TRAVEL,1804064,"177,600.00"
Home Office,UKBA - UK Borders Agency,10/09/2010,Asylum Services.Public Expense Removals,UKBA - UK Borders Agency,CARLSON WAGONLIT TRAVEL,1804057,"85,465.00"
Home Office,UKBA - UK Borders Agency,10/09/2010,Asylum Services.Public Expense Removals,UKBA - UK Borders Agency,CARLSON WAGONLIT TRAVEL,1804144,"71,686.39"
Home Office,UKBA - UK Borders Agency,10/09/2010,Asylum Services.Public Expense Removals,UKBA - UK Borders Agency,CARLSON WAGONLIT TRAVEL,1804059,"30,990.42"
Home Office,UKBA - UK Borders Agency,10/09/2010,"Transport, Storage & Mail Serv.Visa stock",UKBA - UK Borders Agency,3M SECURITY PRINTING & SYSTEMS LTD,1803282,"42,648.97"
Home Office,UKBA - UK Borders Agency,10/09/2010,OGD RFT,UKBA - UK Borders Agency,TREASURY SOLICITOR CLIENT MONIES,AH703,"54,756.00"
Home Office,UKBA - UK Borders Agency,13/09/2010,Politics & Civic Affairs.Displaced pers.assistance,UKBA - UK Borders Agency,SODEXHO PASS LTD,1805263,"992,663.18"
Home Office,UKBA - UK Borders Agency,13/09/2010,Politics & Civic Affairs.Human aid & relief Sect 4,UKBA - UK Borders Agency,GLASGOW CITY COUNCIL,1805113,"766,406.52"
Home Office,UKBA - UK Borders Agency,13/09/2010,Asylum Provision.Asylum Cont Out Serv,UKBA - UK Borders Agency,"REFUGEE ACTION ( REGIONS - NW, SE & SW )",1804288,"247,647.00"
Home Office,UKBA - UK Borders Agency,13/09/2010,Asylum Provision.Asylum serv Sect4Vouchers,UKBA - UK Borders Agency,SODEXHO PASS LTD,1805167,"244,177.42"
Home Office,UKBA - UK Borders Agency,13/09/2010,Asylum Provision.Asylum Cont Out Serv,UKBA - UK Borders Agency,"REFUGEE ACTION ( REGIONS - NW, SE & SW )",1804291,"27,225.00"
Home Office,UKBA - UK Borders Agency,13/09/2010,"Public Order, Security Service.Detention Services Contracts",UKBA - UK Borders Agency,THE GEO GROUP UK LTD,1798065,"583,093.96"
Home Office,UKBA - UK Borders Agency,13/09/2010,"Public Order, Security Service.Detention Services Contracts",UKBA - UK Borders Agency,THE GEO GROUP UK LTD,1799270,"99,688.46"
Home Office,UKBA - UK Borders Agency,13/09/2010,"Public Order, Security, Safety.Escorting services",UKBA - UK Borders Agency,G4S CARE & JUSTICE SERVICES (UK) LTD,1790125,"65,013.34"
Home Office,UKBA - UK Borders Agency,13/09/2010,"Building, Construction Service.Maintenance & Repair serv-PROG",UKBA - UK Borders Agency,G4S CARE & JUSTICE SERVICES (UK) LTD,1789957,"54,624.49"
Home Office,UKBA - UK Borders Agency,13/09/2010,"Building, Construction Service.Maintenance & Repair serv-PROG",UKBA - UK Borders Agency,G4S CARE & JUSTICE SERVICES (UK) LTD,1789952,"31,731.24"
Home Office,UKBA - UK Borders Agency,13/09/2010,Storage & Mail Services.Messenger & Reception Services,UKBA - UK Borders Agency,MM TELEPERFORMANCE LTD T/A TELEPERFORMANCE,1803983,"40,796.47"
Home Office,UKBA - UK Borders Agency,13/09/2010,Storage & Mail Services.Messenger & Reception Services,UKBA - UK Borders Agency,SMITHS DETECTION INTERNATIONAL UK,1803948,"58,750.00"
Home Office,UKBA - UK Borders Agency,13/09/2010,Generators & Equip (FA).Plant & machinery (FA),UKBA - UK Borders Agency,ARQIVA LTD,1798927,"60,598.91"
Home Office,UKBA - UK Borders Agency,13/09/2010,Defense & Law Enforcement.Police Liaison Officers,UKBA - UK Borders Agency,THE METROPOLITAN POLICE,1804373,"315,187.00"
Home Office,UKBA - UK Borders Agency,13/09/2010,Defense & Law Enforcement.Police Liaison Officers,UKBA - UK Borders Agency,WEST MIDLANDS POLICE,1805230,"30,807.05"
Home Office,UKBA - UK Borders Agency,14/09/2010,IT & Telecoms Components.Computer Equip (FA),UKBA - UK Borders Agency,COGENT SYSTEMS INC.,1805535,"113,230.05"
Home Office,UKBA - UK Borders Agency,14/09/2010,IT & Telecoms Components.Computer Equip (FA),UKBA - UK Borders Agency,COGENT SYSTEMS INC.,1805543,"105,855.75"
Home Office,UKBA - UK Borders Agency,14/09/2010,"Public Order, Security, Safety.Escorting services",UKBA - UK Borders Agency,G4S CARE & JUSTICE SERVICES (UK) LTD,1790725,"108,761.63"
Home Office,UKBA - UK Borders Agency,14/09/2010,"Public Order, Security, Safety.Escorting services",UKBA - UK Borders Agency,G4S CARE & JUSTICE SERVICES (UK) LTD,1772617,"87,036.81"
Home Office,UKBA - UK Borders Agency,14/09/2010,"Public Order, Security, Safety.Escorting services",UKBA - UK Borders Agency,G4S CARE & JUSTICE SERVICES (UK) LTD,1773118,"63,745.92"
Home Office,UKBA - UK Borders Agency,14/09/2010,"Public Order, Security, Safety.Escorting services",UKBA - UK Borders Agency,G4S CARE & JUSTICE SERVICES (UK) LTD,1773128,"53,088.66"
Home Office,UKBA - UK Borders Agency,14/09/2010,"Public Order, Security, Safety.Escorting services",UKBA - UK Borders Agency,G4S CARE & JUSTICE SERVICES (UK) LTD,1772616,"41,979.59"
Home Office,UKBA - UK Borders Agency,14/09/2010,"Public Order, Security, Safety.Escorting services",UKBA - UK Borders Agency,G4S CARE & JUSTICE SERVICES (UK) LTD,1790719,"41,652.50"
Home Office,UKBA - UK Borders Agency,14/09/2010,"Public Order, Security, Safety.Escorting services",UKBA - UK Borders Agency,G4S CARE & JUSTICE SERVICES (UK) LTD,1786248,"40,179.02"
Home Office,UKBA - UK Borders Agency,14/09/2010,"Public Order, Security, Safety.Escorting services",UKBA - UK Borders Agency,G4S CARE & JUSTICE SERVICES (UK) LTD,1772598,"39,611.51"
Home Office,UKBA - UK Borders Agency,14/09/2010,"Public Order, Security, Safety.Escorting services",UKBA - UK Borders Agency,G4S CARE & JUSTICE SERVICES (UK) LTD,1772615,"33,365.29"
Home Office,UKBA - UK Borders Agency,14/09/2010,"Public Order, Security, Safety.Security Guard Services - PROG",UKBA - UK Borders Agency,EAMUS CORK SOLUTIONS,1799549,"152,845.30"
Home Office,UKBA - UK Borders Agency,14/09/2010,Animal Material & Supplies.Detect Dogs-Kennel & Misc-PROG,UKBA - UK Borders Agency,WAGTAIL,1805651,"86,181.73"
Home Office,UKBA - UK Borders Agency,14/09/2010,Management & Admin Serv.Corp & Bus Org Structure- PROG,UKBA - UK Borders Agency,ALPINE RESOURCING LIMITED,1804349,"36,201.75"
Home Office,UKBA - UK Borders Agency,14/09/2010,"Clothes, shoes & Personal Care.Clothing - PROG",UKBA - UK Borders Agency,ALEXANDRA PLC,1580205,"34,173.60"
Home Office,UKBA - UK Borders Agency,14/09/2010,"Transport, Storage & Mail Serv.Fuel & Vehicle Supp Serv- PROG",UKBA - UK Borders Agency,INCHCAPE FLEET SOLUTIONS LTD,1797417,"108,756.00"
Home Office,UKBA - UK Borders Agency,14/09/2010,"Transport, Storage & Mail Serv.Fuel & Vehicle Supp Serv- PROG",UKBA - UK Borders Agency,INCHCAPE FLEET SOLUTIONS LTD,1777806,"89,973.29"
Home Office,UKBA - UK Borders Agency,14/09/2010,Healthcare Services.Healthcare Services - ADMN,UKBA - UK Borders Agency,HEALTH MANAGEMENT LTD,1789198,"74,426.92"
Home Office,UKBA - UK Borders Agency,14/09/2010,Healthcare Services.Healthcare Services - ADMN,UKBA - UK Borders Agency,HEALTH MANAGEMENT LTD,1798935,"53,610.86"
Home Office,UKBA - UK Borders Agency,14/09/2010,Defense & Law Enforcement.Police Liaison Officers,UKBA - UK Borders Agency,HUMBERSIDE POLICE AUTHORITY,1806367,"25,676.93"
Home Office,UKBA - UK Borders Agency,15/09/2010,Grant,UKBA - UK Borders Agency,MANCHESTER CITY COUNCIL 2 (G),505810,"279,771.43"
Home Office,UKBA - UK Borders Agency,15/09/2010,Grant,UKBA - UK Borders Agency,ROCHDALE BOROUGH COUNCIL (G),506600,"26,395.92"
Home Office,UKBA - UK Borders Agency,15/09/2010,Grant,UKBA - UK Borders Agency,LONDON BOROUGH  WALTHAM FOREST (G),506600,"29,142.49"
Home Office,UKBA - UK Borders Agency,15/09/2010,Grant,UKBA - UK Borders Agency,PLYMOUTH CITY COUNCIL 1 (G),506600,"45,760.66"
Home Office,UKBA - UK Borders Agency,15/09/2010,Grant,UKBA - UK Borders Agency,LEICESTER CITY COUNCIL 1 (G),496984,"50,779.00"
Home Office,UKBA - UK Borders Agency,15/09/2010,Grant,UKBA - UK Borders Agency,LONDON BOROUGH OF HOUNSLOW 1 (G),506600,"71,904.18"
Home Office,UKBA - UK Borders Agency,15/09/2010,Grant,UKBA - UK Borders Agency,LONDON BOROUGH OF ISLINGTON (G),506600,"87,311.78"
Home Office,UKBA - UK Borders Agency,15/09/2010,IT & Telecoms Components.Computer Equip (FA),UKBA - UK Borders Agency,COGENT SYSTEMS INC.,1806970,"93,983.55"
Home Office,UKBA - UK Borders Agency,15/09/2010,Asylum Provision.Asylum Cont Out Serv,UKBA - UK Borders Agency,WELSH REFUGEE COUNCIL,1796162,"38,136.68"
Home Office,UKBA - UK Borders Agency,15/09/2010,IT & Telecoms Components.Computer Equip (FA),UKBA - UK Borders Agency,COGENT SYSTEMS INC.,1806960,"37,214.13"
Home Office,UKBA - UK Borders Agency,15/09/2010,Professional & Admin Services.Residential Rental - PROG,UKBA - UK Borders Agency,GVA GRIMLEY,1807576,"158,705.48"
Home Office,UKBA - UK Borders Agency,15/09/2010,"OGDs, COUNCILS & POLICE AUTHORITIES.OGD",UKBA - UK Borders Agency,BIRMINGHAM CITY COUNCIL,1806586,"44,880.00"
Home Office,UKBA - UK Borders Agency,15/09/2010,"OGDs, COUNCILS & POLICE AUTHORITIES.OGD",UKBA - UK Borders Agency,MANCHESTER CITY COUNCIL,1806822,"29,760.00"
Home Office,UKBA - UK Borders Agency,15/09/2010,"OGDs, COUNCILS & POLICE AUTHORITIES.OGD",UKBA - UK Borders Agency,LONDON BOROUGH OF SOUTHWARK,1807034,"28,080.00"
Home Office,UKBA - UK Borders Agency,15/09/2010,"OGDs, COUNCILS & POLICE AUTHORITIES.OGD",UKBA - UK Borders Agency,NEWHAM REGISTER OFFICE,1806916,"26,480.00"
Home Office,UKBA - UK Borders Agency,15/09/2010,Management & Admin Serv.Civil Liability Serv - PROG,UKBA - UK Borders Agency,PINSENT MASONS,1799421,"108,683.74"
Home Office,UKBA - UK Borders Agency,15/09/2010,Management & Admin Serv.Corp & Bus Org Structure- PROG,UKBA - UK Borders Agency,ALPINE RESOURCING LIMITED,1792593,"38,986.50"
Home Office,UKBA - UK Borders Agency,15/09/2010,"Transport, Storage & Mail Serv.Parking fees - PROG",UKBA - UK Borders Agency,GATWICK AIRPORT LTD,1806952,"26,855.20"
Home Office,UKBA - UK Borders Agency,15/09/2010,Defense & Law Enforcement.Police Liaison Officers,UKBA - UK Borders Agency,WEST YORKSHIRE POLICE AUTHORITY,1806793,"137,380.00"
Home Office,UKBA - UK Borders Agency,15/09/2010,Public Order.Jail or prison services,UKBA - UK Borders Agency,METROPOLITAN POLICE,1806820,"100,077.00"
Home Office,UKBA - UK Borders Agency,15/09/2010,Defense & Law Enforcement.Police Liaison Officers,UKBA - UK Borders Agency,DUMFRIES & GALLOWAY COUNCIL,1806792,"42,263.56"
Home Office,UKBA - UK Borders Agency,15/09/2010,Storage & Mail Services.Messenger & Reception Services,UKBA - UK Borders Agency,USCIS (DEPT OF HOMELAND SECURITY),1809744,"900,000.00"
Home Office,UKBA - UK Borders Agency,15/09/2010,Storage & Mail Services,UKBA - UK Borders Agency,DRIVER AND VEHICLE LICENSING AGENCY (DVLA),9300085899,"99,875.00"
Home Office,UKBA - UK Borders Agency,15/09/2010,"IT, Broadcasting & Telecomms",UKBA - UK Borders Agency,FCO SERVICES,6022083,"30,018.90"
Home Office,UKBA - UK Borders Agency,16/09/2010,Grant,UKBA - UK Borders Agency,OISC (G),495222,"339,750.00"
Home Office,UKBA - UK Borders Agency,16/09/2010,Politics & Civic Affairs.Human aid & relief Sect 4,UKBA - UK Borders Agency,BIRMINGHAM CITY COUNCIL,1808554,"503,721.29"
Home Office,UKBA - UK Borders Agency,16/09/2010,Professional & Admin Services.Corp Business IT Serv - PROG,UKBA - UK Borders Agency,SERCO  LTD,1803190,"323,712.50"
Home Office,UKBA - UK Borders Agency,16/09/2010,Management & Admin Serv.Corp & Bus Org Structure- PROG,UKBA - UK Borders Agency,SERCO  LTD,1803201,"35,037.33"
Home Office,UKBA - UK Borders Agency,16/09/2010,Professional & Admin Services.Corp Business IT Serv - PROG,UKBA - UK Borders Agency,PARITY RESOURCES LTD,1772728,"25,543.42"
Home Office,UKBA - UK Borders Agency,16/09/2010,"Public Order, Security Service.Detention Services Contracts",UKBA - UK Borders Agency,THE GEO GROUP UK LTD,1808140,"1,184,718.43"
Home Office,UKBA - UK Borders Agency,16/09/2010,Professional & Admin Services.Residential Rental - PROG,UKBA - UK Borders Agency,ARORA MANAGEMENT SERVICES ON BEHALF OF AP24 LTD,1799349,"318,615.94"
Home Office,UKBA - UK Borders Agency,16/09/2010,"Law Enforcement & safety Equip.Haulage, Storage & Disp (HSD)",UKBA - UK Borders Agency,G4S CASH SERVICES (UK) LIMITED,1808598,"30,540.49"
Home Office,UKBA - UK Borders Agency,16/09/2010,Asylum Services.Public Expense Removals,UKBA - UK Borders Agency,CARLSON WAGONLIT TRAVEL,1805602,"232,307.56"
Home Office,UKBA - UK Borders Agency,16/09/2010,Asylum Services.Public Expense Removals,UKBA - UK Borders Agency,CARLSON WAGONLIT TRAVEL,1805610,"202,449.64"
Home Office,UKBA - UK Borders Agency,16/09/2010,Asylum Services.Public Expense Removals,UKBA - UK Borders Agency,CARLSON WAGONLIT TRAVEL,1805619,"108,635.52"
Home Office,UKBA - UK Borders Agency,16/09/2010,Asylum Services.Public Expense Removals,UKBA - UK Borders Agency,CARLSON WAGONLIT TRAVEL,1806854,"57,200.00"
Home Office,UKBA - UK Borders Agency,16/09/2010,"Transport, Storage & Mail Serv.Visa stock",UKBA - UK Borders Agency,3M SECURITY PRINTING & SYSTEMS LTD,1803283,"36,547.20"
Home Office,UKBA - UK Borders Agency,17/09/2010,Public Utilities.Service Charges - PROG,UKBA - UK Borders Agency,GVA GRIMLEY,1809009,"42,378.48"
Home Office,UKBA - UK Borders Agency,17/09/2010,Management & Admin Serv.Temp IT N/w Specialists - ADMN,UKBA - UK Borders Agency,TRIBAL CONSULTING LTD,1763716,"30,000.32"
Home Office,UKBA - UK Borders Agency,17/09/2010,Professional & Admin Services.Clerical & Admin Staff - ADMN,UKBA - UK Borders Agency,TRIBAL CONSULTING LTD,1759469,"25,713.70"
Home Office,UKBA - UK Borders Agency,17/09/2010,Asylum Services.Public Expense Removals,UKBA - UK Borders Agency,CARLSON WAGONLIT TRAVEL,1808990,"151,580.33"
Home Office,UKBA - UK Borders Agency,17/09/2010,Asylum Services.Public Expense Removals,UKBA - UK Borders Agency,CARLSON WAGONLIT TRAVEL,1808968,"131,711.30"
Home Office,UKBA - UK Borders Agency,20/09/2010,Storage & Mail Services.Messenger & Reception Services,UKBA - UK Borders Agency,REFUGEE COUNCIL,1795791,"28,496.26"
Home Office,UKBA - UK Borders Agency,20/09/2010,"Public Order, Security, Safety.Domestic Escort Services",UKBA - UK Borders Agency,G4S CARE & JUSTICE SERVICES (UK) LTD,1795708,"1,537,876.84"
Home Office,UKBA - UK Borders Agency,20/09/2010,"Public Order, Security, Safety.Domestic Escort Services",UKBA - UK Borders Agency,G4S CARE & JUSTICE SERVICES (UK) LTD,1795713,"1,489,756.40"
Home Office,UKBA - UK Borders Agency,20/09/2010,"Public Order, Security, Safety.Domestic Escort Services",UKBA - UK Borders Agency,G4S CARE & JUSTICE SERVICES (UK) LTD,1786251,"112,630.39"
Home Office,UKBA - UK Borders Agency,20/09/2010,"Public Order, Security, Safety.Escorting services",UKBA - UK Borders Agency,G4S CARE & JUSTICE SERVICES (UK) LTD,1793493,"92,951.44"
Home Office,UKBA - UK Borders Agency,20/09/2010,"Public Order, Security, Safety.Domestic Escort Services",UKBA - UK Borders Agency,G4S CARE & JUSTICE SERVICES (UK) LTD,1772594,"85,665.07"
Home Office,UKBA - UK Borders Agency,20/09/2010,"Public Order, Security, Safety.Escorting services",UKBA - UK Borders Agency,G4S CARE & JUSTICE SERVICES (UK) LTD,1793453,"78,383.36"
Home Office,UKBA - UK Borders Agency,20/09/2010,"Public Order, Security, Safety.Domestic Escort Services",UKBA - UK Borders Agency,G4S CARE & JUSTICE SERVICES (UK) LTD,1777735,"62,818.45"
Home Office,UKBA - UK Borders Agency,20/09/2010,"Public Order, Security, Safety.Escorting services",UKBA - UK Borders Agency,G4S CARE & JUSTICE SERVICES (UK) LTD,1795742,"53,265.43"
Home Office,UKBA - UK Borders Agency,20/09/2010,"Public Order, Security, Safety.Escorting services",UKBA - UK Borders Agency,G4S CARE & JUSTICE SERVICES (UK) LTD,1793491,"40,974.89"
Home Office,UKBA - UK Borders Agency,20/09/2010,"Public Order, Security, Safety.Escorting services",UKBA - UK Borders Agency,G4S CARE & JUSTICE SERVICES (UK) LTD,1793450,"40,695.43"
Home Office,UKBA - UK Borders Agency,20/09/2010,"Public Order, Security, Safety.Escorting services",UKBA - UK Borders Agency,G4S CARE & JUSTICE SERVICES (UK) LTD,1793446,"39,245.74"
Home Office,UKBA - UK Borders Agency,20/09/2010,"Public Order, Security, Safety.Domestic Escort Services",UKBA - UK Borders Agency,G4S CARE & JUSTICE SERVICES (UK) LTD,1777736,"37,631.46"
Home Office,UKBA - UK Borders Agency,20/09/2010,"Public Order, Security, Safety.Domestic Escort Services",UKBA - UK Borders Agency,G4S CARE & JUSTICE SERVICES (UK) LTD,1787895,"34,041.01"
Home Office,UKBA - UK Borders Agency,20/09/2010,"Public Order, Security, Safety.Domestic Escort Services",UKBA - UK Borders Agency,G4S CARE & JUSTICE SERVICES (UK) LTD,1772592,"33,446.97"
Home Office,UKBA - UK Borders Agency,20/09/2010,"Public Order, Security, Safety.Domestic Escort Services",UKBA - UK Borders Agency,G4S CARE & JUSTICE SERVICES (UK) LTD,1772596,"27,182.07"
Home Office,UKBA - UK Borders Agency,20/09/2010,"Public Order, Security, Safety.Escorting services",UKBA - UK Borders Agency,G4S CARE & JUSTICE SERVICES (UK) LTD,1795749,"25,788.14"
Home Office,UKBA - UK Borders Agency,20/09/2010,"IT, Broadcasting & Telecomms.IT Run Cost Info Support-PROG",UKBA - UK Borders Agency,FUJITSU SERVICES (ALCEDO) LTD,1778410,"46,377.25"
Home Office,UKBA - UK Borders Agency,20/09/2010,"IT, Broadcasting & Telecomms.Mobile phones",UKBA - UK Borders Agency,VODAFONE CORPORATE,1727954,"311,177.35"
Home Office,UKBA - UK Borders Agency,20/09/2010,"IT, Broadcasting & Telecomms.Mobile phones",UKBA - UK Borders Agency,VODAFONE CORPORATE,1809636,"286,868.69"
Home Office,UKBA - UK Borders Agency,20/09/2010,IT & Telecoms Components.Computer Equip (FA),UKBA - UK Borders Agency,KRONOS SYSTEMS LTD,1809609,"29,207.58"
Home Office,UKBA - UK Borders Agency,20/09/2010,Asylum Services.Public Expense Removals,UKBA - UK Borders Agency,CARLSON WAGONLIT TRAVEL,1810413,"167,666.57"
Home Office,UKBA - UK Borders Agency,21/09/2010,Grant,UKBA - UK Borders Agency,ACTION IN COMMUNITIES (G),521618-1,"30,185.00"
Home Office,UKBA - UK Borders Agency,21/09/2010,Politics & Civic Affairs.Displaced pers.assistance,UKBA - UK Borders Agency,SODEXHO PASS LTD,1811609,"1,011,741.92"
Home Office,UKBA - UK Borders Agency,21/09/2010,Politics & Civic Affairs.Human aid & relief Sect 4,UKBA - UK Borders Agency,BIRMINGHAM CITY COUNCIL,1808564,"614,245.51"
Home Office,UKBA - UK Borders Agency,21/09/2010,Asylum Provision.Asylum serv Sect4Vouchers,UKBA - UK Borders Agency,SODEXHO PASS LTD,1810680,"231,874.56"
Home Office,UKBA - UK Borders Agency,21/09/2010,IT & Telecoms Components.Computer Equip (FA),UKBA - UK Borders Agency,COGENT SYSTEMS INC.,1806977,"72,445.80"
Home Office,UKBA - UK Borders Agency,21/09/2010,Storage & Mail Services.Messenger & Reception Services,UKBA - UK Borders Agency,MANCHESTER CITY COUNCIL,1810598,"56,399.44"
Home Office,UKBA - UK Borders Agency,21/09/2010,Professional & Admin Services.Consultancy - Advice,UKBA - UK Borders Agency,NES IT,1790638,"34,500.94"
Home Office,UKBA - UK Borders Agency,21/09/2010,Asylum Provision.Asylum Cont Out Serv,UKBA - UK Borders Agency,NORTH OF ENGLAND REFUGEE SERVICES LTD,1811007,"28,628.00"
Home Office,UKBA - UK Borders Agency,21/09/2010,"Public Order, Security, Safety.Escorting services",UKBA - UK Borders Agency,G4S CARE & JUSTICE SERVICES (UK) LTD,1787885,"614,370.40"
Home Office,UKBA - UK Borders Agency,21/09/2010,"Public Order, Security, Safety.Escorting services",UKBA - UK Borders Agency,G4S CARE & JUSTICE SERVICES (UK) LTD,1787884,"386,314.47"
Home Office,UKBA - UK Borders Agency,21/09/2010,"Public Order, Security, Safety.Escorting services",UKBA - UK Borders Agency,G4S CARE & JUSTICE SERVICES (UK) LTD,1780084,"256,492.11"
Home Office,UKBA - UK Borders Agency,21/09/2010,"Public Order, Security, Safety.Escorting services",UKBA - UK Borders Agency,G4S CARE & JUSTICE SERVICES (UK) LTD,1790727,"50,444.62"
Home Office,UKBA - UK Borders Agency,21/09/2010,"Public Order, Security, Safety.Domestic Escort Services",UKBA - UK Borders Agency,G4S CARE & JUSTICE SERVICES (UK) LTD,1787896,"33,821.70"
Home Office,UKBA - UK Borders Agency,21/09/2010,Storage & Mail Services.Messenger & Reception Services,UKBA - UK Borders Agency,IDENTITY & PASSPORTS SERVICE,1811015,"34,726.77"
Home Office,UKBA - UK Borders Agency,21/09/2010,Professional & Admin Services.Corp Business Management- ADMN,UKBA - UK Borders Agency,MANCHESTER CITY COUNCIL,1806823,"35,718.81"
Home Office,UKBA - UK Borders Agency,21/09/2010,IT & Telecoms Components.Computer Equip (FA),UKBA - UK Borders Agency,KRONOS SYSTEMS LTD,1810586,"26,437.50"
Home Office,UKBA - UK Borders Agency,21/09/2010,Law Enforcement & safety Equip,UKBA - UK Borders Agency,SECURITY SERVICES GROUP,OP/I097947,"90,328.73"
Home Office,UKBA - UK Borders Agency,21/09/2010,OGD RFT,UKBA - UK Borders Agency,TREASURY SOLICITOR CLIENT MONIES,AH711,"221,020.41"
Home Office,UKBA - UK Borders Agency,21/09/2010,Law Enforcement & safety Equip,UKBA - UK Borders Agency,SECURITY SERVICES GROUP,OP/I097946,"31,554.05"
Home Office,UKBA - UK Borders Agency,22/09/2010,Grant,UKBA - UK Borders Agency,WILTSHIRE COUNTY COUNCIL 1 (G),509608,"26,931.87"
Home Office,UKBA - UK Borders Agency,22/09/2010,Grant,UKBA - UK Borders Agency,WOLVERHAMPTON CITY COUNCIL 1 (G),509608,"42,817.14"
Home Office,UKBA - UK Borders Agency,22/09/2010,Grant,UKBA - UK Borders Agency,LONDON BOROUGH OF ENFIELD 1 (G),509608,"43,526.58"
Home Office,UKBA - UK Borders Agency,22/09/2010,Grant,UKBA - UK Borders Agency,LONDON BOROUGH OF HAMMERSMITH & FU,509608,"48,701.30"
Home Office,UKBA - UK Borders Agency,22/09/2010,Grant,UKBA - UK Borders Agency,LONDON BOROUGH TOWER HAMLETS (G),509608,"54,659.92"
Home Office,UKBA - UK Borders Agency,22/09/2010,Grant,UKBA - UK Borders Agency,LONDON BOROUGH OF LAMBETH 1 (G),509608-1,"65,369.88"
Home Office,UKBA - UK Borders Agency,22/09/2010,Grant,UKBA - UK Borders Agency,LONDON BOROUGH OF LAMBETH 1 (G),509608,"65,933.59"
Home Office,UKBA - UK Borders Agency,22/09/2010,Grant,UKBA - UK Borders Agency,WESTMINSTER CITY COUNCIL (G),509608,"103,305.65"
Home Office,UKBA - UK Borders Agency,22/09/2010,Grant,UKBA - UK Borders Agency,NOTTINGHAMSHIRE COUNTY COUNCIL 2 (,509608,"221,127.15"
Home Office,UKBA - UK Borders Agency,22/09/2010,Grant,UKBA - UK Borders Agency,PEMBROKESHIRE COUNTY COUNCIL1 (G),509608,"46,502.67"
Home Office,UKBA - UK Borders Agency,22/09/2010,Politics & Civic Affairs.Human aid & relief Sect 4,UKBA - UK Borders Agency,LEEDS CITY COUNCIL,1812047,"966,245.04"
Home Office,UKBA - UK Borders Agency,22/09/2010,IT & Telecoms Components.Computer Equip (FA),UKBA - UK Borders Agency,IBM DIRECT UNITED KINGDOM LTD,1811790,"200,483.20"
Home Office,UKBA - UK Borders Agency,22/09/2010,Professional & Admin Services.Facilities Man Serv - ADMN,UKBA - UK Borders Agency,FINCORE LTD,1796037,"75,200.00"
Home Office,UKBA - UK Borders Agency,22/09/2010,Storage & Mail Services.Messenger & Reception Services,UKBA - UK Borders Agency,STOKE ON TRENT CITY COUNCIL,1811715,"38,200.00"
Home Office,UKBA - UK Borders Agency,22/09/2010,IT & Telecoms Components.Computer Equip (FA),UKBA - UK Borders Agency,IBM DIRECT UNITED KINGDOM LTD,1811677,"38,125.94"
Home Office,UKBA - UK Borders Agency,22/09/2010,IT & Telecoms Components.Computer Equip (FA),UKBA - UK Borders Agency,IBM DIRECT UNITED KINGDOM LTD,1811576,"35,922.10"
Home Office,UKBA - UK Borders Agency,22/09/2010,Professional & Admin Services.Business admin services - PROG,UKBA - UK Borders Agency,ADVANTAGE TECHNICAL RESOURCING,1796457,"28,657.43"
Home Office,UKBA - UK Borders Agency,22/09/2010,"IT, Broadcasting & Telecomms.Software - PROG",UKBA - UK Borders Agency,RAYTHEON SYSTEMS LTD,1810512,"799,244.31"
Home Office,UKBA - UK Borders Agency,22/09/2010,"Law Enforcement & safety Equip.Haulage, Storage & Disp (HSD)",UKBA - UK Borders Agency,ASSOCIATED BRITISH PORTS,1812108,"438,783.78"
Home Office,UKBA - UK Borders Agency,22/09/2010,"Law Enforcement & safety Equip.Haulage, Storage & Disp (HSD)",UKBA - UK Borders Agency,ASSOCIATED BRITISH PORTS,1812109,"27,554.93"
Home Office,UKBA - UK Borders Agency,22/09/2010,"Science, Technical & Research.Computer services - PROG",UKBA - UK Borders Agency,ATOS ORIGIN IT SERVICES UK LIMITED- MEDICAL SERVICES,1790648,"29,668.75"
Home Office,UKBA - UK Borders Agency,22/09/2010,Asylum Services.Public Expense Removals,UKBA - UK Borders Agency,CARLSON WAGONLIT TRAVEL,1811943,"160,144.81"
Home Office,UKBA - UK Borders Agency,22/09/2010,Asylum Services.Public Expense Removals,UKBA - UK Borders Agency,CARLSON WAGONLIT TRAVEL,1811940,"84,857.33"
Home Office,UKBA - UK Borders Agency,22/09/2010,Professional & Admin Services.Consultant - Imp & Del - ADMN,UKBA - UK Borders Agency,DAME NUALA O'LOAN,1811909,"37,240.90"
Home Office,UKBA - UK Borders Agency,22/09/2010,Storage & Mail Services.Messenger & Reception Services,UKBA - UK Borders Agency,CSC COMPUTER SCIENCES CORPORATION,1792894,"2,251,809.77"
Home Office,UKBA - UK Borders Agency,22/09/2010,Storage & Mail Services.Messenger & Reception Services,UKBA - UK Borders Agency,CSC COMPUTER SCIENCES CORPORATION,1806888,"2,181,169.28"
Home Office,UKBA - UK Borders Agency,22/09/2010,OGD RFT,UKBA - UK Borders Agency,TREASURY SOLICITOR CLIENT MONIES,AH712,"141,338.96"
Home Office,UKBA - UK Borders Agency,22/09/2010,Politics & Civic Affairs.Human aid & relief Sect 4,UKBA - UK Borders Agency,CARDIFF COUNTY COUNCIL,XBASY125/1,"351,517.14"
Home Office,UKBA - UK Borders Agency,23/09/2010,Politics & Civic Affairs.Human aid & relief Sect 4,UKBA - UK Borders Agency,CLEARSPRINGS MANAGEMENT LTD,1813314,"840,427.68"
Home Office,UKBA - UK Borders Agency,23/09/2010,Politics & Civic Affairs.Human aid & relief Sect 4,UKBA - UK Borders Agency,PRIORITY PROPERTIES NORTH WEST,1813243,"530,164.25"
Home Office,UKBA - UK Borders Agency,23/09/2010,Politics & Civic Affairs.Human aid & relief Sect 4,UKBA - UK Borders Agency,PRIORITY PROPERTIES NORTH WEST,1813241,"342,411.30"
Home Office,UKBA - UK Borders Agency,23/09/2010,Politics & Civic Affairs.Human aid & relief Sect 4,UKBA - UK Borders Agency,CLEARSPRINGS MANAGEMENT LTD,1813321,"339,926.47"
Home Office,UKBA - UK Borders Agency,23/09/2010,Politics & Civic Affairs.Human aid & relief Sect 4,UKBA - UK Borders Agency,PRIORITY PROPERTIES NORTH WEST,1813245,"236,186.81"
Home Office,UKBA - UK Borders Agency,23/09/2010,Politics & Civic Affairs.Human aid & relief Sect 4,UKBA - UK Borders Agency,CLEARSPRINGS MANAGEMENT LTD,1813318,"171,684.81"
Home Office,UKBA - UK Borders Agency,23/09/2010,Politics & Civic Affairs.Human aid & relief Sect 4,UKBA - UK Borders Agency,CLEARSPRINGS MANAGEMENT LTD,1813310,"162,674.16"
Home Office,UKBA - UK Borders Agency,23/09/2010,Politics & Civic Affairs.Human aid & relief Sect 4,UKBA - UK Borders Agency,PRIORITY PROPERTIES NORTH WEST,1813248,"29,959.94"
Home Office,UKBA - UK Borders Agency,23/09/2010,Asylum Provision.Asylum Cont Out Serv,UKBA - UK Borders Agency,NORTH OF ENGLAND REFUGEE SERVICES LTD,1811009,"28,628.00"
Home Office,UKBA - UK Borders Agency,23/09/2010,Professional & Admin Services.Residential Rental - PROG,UKBA - UK Borders Agency,MANCHESTER AIRPORT PLC,1813234,"30,109.38"
Home Office,UKBA - UK Borders Agency,23/09/2010,"Science, Technical & Research.Computer services - PROG",UKBA - UK Borders Agency,SPECIALIST COMPUTER CENTRES PLC,1772546,"25,027.52"
Home Office,UKBA - UK Borders Agency,23/09/2010,Management & Admin Serv.Corp & Bus Org Structure- PROG,UKBA - UK Borders Agency,DELOITTE MCS LIMITED,1812581,"54,008.64"
Home Office,UKBA - UK Borders Agency,23/09/2010,Law Enforcement & safety Equip.Maint&Rep of Plant&Mach�PROG,UKBA - UK Borders Agency,SAIC LIMITED,1728005,"34,552.05"
Home Office,UKBA - UK Borders Agency,23/09/2010,"Building, Construction Service.Maintenance & Repair serv-PROG",UKBA - UK Borders Agency,SAIC LIMITED,1794389,"34,548.53"
Home Office,UKBA - UK Borders Agency,24/09/2010,Politics & Civic Affairs.Human aid & relief Sect 4,UKBA - UK Borders Agency,CLEARSPRINGS MANAGEMENT LTD,1813401,"461,534.75"
Home Office,UKBA - UK Borders Agency,24/09/2010,Politics & Civic Affairs.Human aid & relief Sect 4,UKBA - UK Borders Agency,PRIORITY PROPERTIES NORTH WEST,1813519,"167,279.66"
Home Office,UKBA - UK Borders Agency,24/09/2010,IT & Telecoms Components.Computer Equip (FA),UKBA - UK Borders Agency,ATOS ORIGIN IT SERVICES UK LIMITED- MEDICAL SERVICES,1813233,"51,261.73"
Home Office,UKBA - UK Borders Agency,24/09/2010,"Public Order, Security Service.Jail & prison system",UKBA - UK Borders Agency,HAMPSHIRE PCT,1774809,"147,870.00"
Home Office,UKBA - UK Borders Agency,24/09/2010,"Public Order, Security, Safety.PORT AUTHORITY DETENTION",UKBA - UK Borders Agency,HARWICH INTL PORT LTD,1813657,"40,958.72"
Home Office,UKBA - UK Borders Agency,24/09/2010,"IT, Broadcasting & Telecomms.Software - PROG",UKBA - UK Borders Agency,RAYTHEON SYSTEMS LTD,1805468,"121,443.30"
Home Office,UKBA - UK Borders Agency,24/09/2010,Law Enforcement & safety Equip.Maint&Rep of Plant&Mach�PROG,UKBA - UK Borders Agency,L3 COMMUNICATIONS (UK) LTD,1792645,"58,350.95"
Home Office,UKBA - UK Borders Agency,24/09/2010,IT & Telecommunications.IT & Telecommunications,UKBA - UK Borders Agency,ATOS ORIGIN IT SERVICES UK LIMITED- MEDICAL SERVICES,1813212,"35,725.88"
Home Office,UKBA - UK Borders Agency,24/09/2010,"IT, Broadcasting & Telecomms.IT Running Cost - Maint - PROG",UKBA - UK Borders Agency,FUJITSU SERVICES LTD,1797205,"33,307.17"
Home Office,UKBA - UK Borders Agency,27/09/2010,Grant,UKBA - UK Borders Agency,UNIVERSITY OF OXFORD 1 (G),529094,"63,423.00"
Home Office,UKBA - UK Borders Agency,27/09/2010,Grant,UKBA - UK Borders Agency,HERTFORDSHIRE COUNTY COUNCIL 1 (G),519778,"46,842.86"
Home Office,UKBA - UK Borders Agency,27/09/2010,Grant,UKBA - UK Borders Agency,LONDON BOROUGH OF HAMMERSMITH & FU,519778,"72,828.57"
Home Office,UKBA - UK Borders Agency,27/09/2010,Grant,UKBA - UK Borders Agency,NORTHAMPTONSHIRE COUNTY COUNCIL 2,526420,"74,114.29"
Home Office,UKBA - UK Borders Agency,27/09/2010,Grant,UKBA - UK Borders Agency,LONDON BOROUGH OF CAMDEN 1 (G),519778,"116,257.14"
Home Office,UKBA - UK Borders Agency,27/09/2010,Grant,UKBA - UK Borders Agency,LONDON BOROUGH OF ISLINGTON (G),519778,"122,500.00"
Home Office,UKBA - UK Borders Agency,27/09/2010,Grant,UKBA - UK Borders Agency,LONDON BOROUGH OF LAMBETH 1 (G),519778,"174,285.71"
Home Office,UKBA - UK Borders Agency,27/09/2010,Grant,UKBA - UK Borders Agency,LONDON BOROUGH OF HAMMERSMITH & FU,526434,"49,302.50"
Home Office,UKBA - UK Borders Agency,27/09/2010,Grant,UKBA - UK Borders Agency,KIRKLEES METROPOLITAN COUNCIL 2 (G,526434,"82,752.60"
Home Office,UKBA - UK Borders Agency,27/09/2010,Grant,UKBA - UK Borders Agency,LONDON BOROUGH OF BARKING & DAGENH,526434,"118,393.14"
Home Office,UKBA - UK Borders Agency,27/09/2010,Politics & Civic Affairs.Human aid & relief Sect 4,UKBA - UK Borders Agency,HAPPY HOMES UK LTD,1814344,"506,905.68"
Home Office,UKBA - UK Borders Agency,27/09/2010,Politics & Civic Affairs.Human aid & relief Sect 4,UKBA - UK Borders Agency,JOMAST PROPERTY AND FINANCE CO LTD,1814443,"367,228.55"
Home Office,UKBA - UK Borders Agency,27/09/2010,Storage & Mail Services.Messenger & Reception Services,UKBA - UK Borders Agency,SIEMENS BUSINESS SERVICES LTD,1798087,"173,614.19"
Home Office,UKBA - UK Borders Agency,27/09/2010,Asylum Provision.Asylum Cont Out Serv,UKBA - UK Borders Agency,WELSH REFUGEE COUNCIL,1814635,"38,442.00"
Home Office,UKBA - UK Borders Agency,27/09/2010,"Public Order, Security Service.Detention Services Contracts",UKBA - UK Borders Agency,G4S CARE & JUSTICE SERVICES (UK) LTD,1798118,"1,246,766.83"
Home Office,UKBA - UK Borders Agency,27/09/2010,"Public Order, Security Service.Detention Services Contracts",UKBA - UK Borders Agency,G4S CARE & JUSTICE SERVICES (UK) LTD,1793352,"1,004,263.20"
Home Office,UKBA - UK Borders Agency,27/09/2010,"Public Order, Security Service.Detention Services Contracts",UKBA - UK Borders Agency,G4S CARE & JUSTICE SERVICES (UK) LTD,1798125,"521,061.36"
Home Office,UKBA - UK Borders Agency,27/09/2010,"Public Order, Security, Safety.Domestic Escort Services",UKBA - UK Borders Agency,G4S CARE & JUSTICE SERVICES (UK) LTD,1798433,"62,718.61"
Home Office,UKBA - UK Borders Agency,27/09/2010,"Public Order, Security Service.Detention Services Contracts",UKBA - UK Borders Agency,G4S CARE & JUSTICE SERVICES (UK) LTD,1798238,"30,552.78"
Home Office,UKBA - UK Borders Agency,27/09/2010,"Transport, Storage & Mail Serv.Parking fees - PROG",UKBA - UK Borders Agency,MANCHESTER AIRPORT PLC,1798335,"69,520.01"
Home Office,UKBA - UK Borders Agency,27/09/2010,Law Enforcement & safety Equip.Security & Control Equip- PROG,UKBA - UK Borders Agency,AMERICAN SCIENCE & ENGINEERING INC,1814527,"44,425.58"
Home Office,UKBA - UK Borders Agency,27/09/2010,Healthcare Services.Healthcare Services - ADMN,UKBA - UK Borders Agency,HEALTH MANAGEMENT LTD,1807580,"63,730.67"
Home Office,UKBA - UK Borders Agency,27/09/2010,Asylum Services.Public Expense Removals,UKBA - UK Borders Agency,CARLSON WAGONLIT TRAVEL,1812110,"239,650.00"
Home Office,UKBA - UK Borders Agency,27/09/2010,Public Order.Voluntary Assisted Return,UKBA - UK Borders Agency,CITIBANK INTERNATIONAL PLC,1814658,"125,000.00"
Home Office,UKBA - UK Borders Agency,27/09/2010,Asylum Services.Public Expense Removals,UKBA - UK Borders Agency,CARLSON WAGONLIT TRAVEL,1812596,"123,826.22"
Home Office,UKBA - UK Borders Agency,27/09/2010,Asylum Services.Public Expense Removals,UKBA - UK Borders Agency,CARLSON WAGONLIT TRAVEL,1812599,"109,111.59"
Home Office,UKBA - UK Borders Agency,27/09/2010,Asylum Services.Public Expense Removals,UKBA - UK Borders Agency,CARLSON WAGONLIT TRAVEL,1814711,"68,344.15"
Home Office,UKBA - UK Borders Agency,27/09/2010,OGD RFT,UKBA - UK Borders Agency,TREASURY SOLICITOR CLIENT MONIES,AH715,"89,716.03"
Home Office,UKBA - UK Borders Agency,27/09/2010,"IT, Broadcasting & Telecomms",UKBA - UK Borders Agency,FCO SERVICES,6022273,"74,441.98"
Home Office,UKBA - UK Borders Agency,28/09/2010,Grant,UKBA - UK Borders Agency,HOUSING ASSOC CHARITABLE TRUST (G),531688,"41,897.23"
Home Office,UKBA - UK Borders Agency,28/09/2010,Politics & Civic Affairs.Displaced pers.assistance,UKBA - UK Borders Agency,SODEXHO PASS LTD,1816220,"1,011,503.08"
Home Office,UKBA - UK Borders Agency,28/09/2010,Politics & Civic Affairs.REFUGEE PROG. SECT 95,UKBA - UK Borders Agency,MANCHESTER CITY COUNCIL,1815587,"589,073.19"
Home Office,UKBA - UK Borders Agency,28/09/2010,Politics & Civic Affairs.Human aid & relief Sect 4,UKBA - UK Borders Agency,ANGEL GROUP,1815534,"397,676.78"
Home Office,UKBA - UK Borders Agency,28/09/2010,Asylum Provision.Asylum serv Sect4Vouchers,UKBA - UK Borders Agency,SODEXHO PASS LTD,1815346,"232,077.35"
Home Office,UKBA - UK Borders Agency,28/09/2010,Politics & Civic Affairs.Human aid & relief Sect 4,UKBA - UK Borders Agency,ANGEL GROUP,1815539,"168,968.62"
Home Office,UKBA - UK Borders Agency,28/09/2010,Politics & Civic Affairs.Human aid & relief Sect 4,UKBA - UK Borders Agency,ANGEL GROUP,1815538,"112,992.96"
Home Office,UKBA - UK Borders Agency,28/09/2010,IT & Telecoms Components.Computer Equip (FA),UKBA - UK Borders Agency,ATOS ORIGIN IT SERVICES UK LIMITED- MEDICAL SERVICES,1813227,"57,376.43"
Home Office,UKBA - UK Borders Agency,28/09/2010,Asylum Provision.Asylum Cont Out Serv,UKBA - UK Borders Agency,SCOTTISH REFUGEE COUNCIL ( SCOTLAND ),1815642,"27,666.00"
Home Office,UKBA - UK Borders Agency,28/09/2010,"Public Order, Security Service.Detention Services Contracts",UKBA - UK Borders Agency,G4S CARE & JUSTICE SERVICES (UK) LTD,1798962,"464,773.60"
Home Office,UKBA - UK Borders Agency,28/09/2010,"Science, Technical & Research.Computer services - PROG",UKBA - UK Borders Agency,NPIA (National Policing Improvement Agency),1816209,"35,250.00"
Home Office,UKBA - UK Borders Agency,28/09/2010,Law Enforcement & safety Equip.Surveillance & Det Equip- PROG,UKBA - UK Borders Agency,FR AVIATION LTD,1759905,"317,976.74"
Home Office,UKBA - UK Borders Agency,28/09/2010,Asylum Services.Public Expense Removals,UKBA - UK Borders Agency,CARLSON WAGONLIT TRAVEL,1815433,"89,960.63"
Home Office,UKBA - UK Borders Agency,28/09/2010,Asylum Services.Public Expense Removals,UKBA - UK Borders Agency,CARLSON WAGONLIT TRAVEL,1815521,"75,657.92"
Home Office,UKBA - UK Borders Agency,28/09/2010,Asylum Services.Public Expense Removals,UKBA - UK Borders Agency,CARLSON WAGONLIT TRAVEL,1815430,"64,760.93"
Home Office,UKBA - UK Borders Agency,28/09/2010,"IT, Broadcasting & Telecomms",UKBA - UK Borders Agency,FCO SERVICES,6022317,"139,787.02"
Home Office,UKBA - UK Borders Agency,28/09/2010,OGD RFT,UKBA - UK Borders Agency,TREASURY SOLICITOR CLIENT MONIES,PT/41217A/AVEIE,"32,850.50"
Home Office,UKBA - UK Borders Agency,29/09/2010,Grant,UKBA - UK Borders Agency,REFUGEE ACTION (G),531996-2,"76,127.50"
Home Office,UKBA - UK Borders Agency,29/09/2010,Grant,UKBA - UK Borders Agency,WELSH REFUGEE COUNCIL 1 (G),531996,"83,083.00"
Home Office,UKBA - UK Borders Agency,29/09/2010,Grant,UKBA - UK Borders Agency,REFUGEE ACTION (G),531996-3,"83,106.50"
Home Office,UKBA - UK Borders Agency,29/09/2010,Grant,UKBA - UK Borders Agency,REFUGEE COUNCIL 1 (G),531996-6,"103,540.50"
Home Office,UKBA - UK Borders Agency,29/09/2010,Grant,UKBA - UK Borders Agency,REFUGEE ACTION (G),531996-6,"132,832.00"
Home Office,UKBA - UK Borders Agency,29/09/2010,Grant,UKBA - UK Borders Agency,REFUGEE COUNCIL 1 (G),531996-4,"223,553.50"
Home Office,UKBA - UK Borders Agency,29/09/2010,Grant,UKBA - UK Borders Agency,REFUGEE COUNCIL 1 (G),531996,"129,948.00"
Home Office,UKBA - UK Borders Agency,29/09/2010,Grant,UKBA - UK Borders Agency,SCOTTISH REFUGEE COUNCIL (G),531996-1,"256,213.00"
Home Office,UKBA - UK Borders Agency,29/09/2010,Grant,UKBA - UK Borders Agency,REFUGEE COUNCIL 1 (G),531996-3,"41,786.50"
Home Office,UKBA - UK Borders Agency,29/09/2010,Grant,UKBA - UK Borders Agency,SCOTTISH REFUGEE COUNCIL (G),531996,"100,898.00"
Home Office,UKBA - UK Borders Agency,29/09/2010,Grant,UKBA - UK Borders Agency,REFUGEE COUNCIL 1 (G),531996-9,"130,936.00"
Home Office,UKBA - UK Borders Agency,29/09/2010,Grant,UKBA - UK Borders Agency,REFUGEE COUNCIL 1 (G),531996-7,"228,903.00"
Home Office,UKBA - UK Borders Agency,29/09/2010,Grant,UKBA - UK Borders Agency,REFUGEE COUNCIL 1 (G),531996-1,"241,472.00"
Home Office,UKBA - UK Borders Agency,29/09/2010,Grant,UKBA - UK Borders Agency,REFUGEE ACTION (G),531996-4,"104,292.00"
Home Office,UKBA - UK Borders Agency,29/09/2010,Grant,UKBA - UK Borders Agency,REFUGEE ACTION (G),531996-5,"143,635.00"
Home Office,UKBA - UK Borders Agency,29/09/2010,Grant,UKBA - UK Borders Agency,REFUGEE ACTION (G),531996,"189,609.00"
Home Office,UKBA - UK Borders Agency,29/09/2010,Grant,UKBA - UK Borders Agency,REFUGEE COUNCIL 1 (G),531996-5,"38,071.00"
Home Office,UKBA - UK Borders Agency,29/09/2010,Grant,UKBA - UK Borders Agency,MIGRANT HELPLINE (G),531996,"223,566.25"
Home Office,UKBA - UK Borders Agency,29/09/2010,Grant,UKBA - UK Borders Agency,REFUGEE COUNCIL 1 (G),531996-8,"446,369.00"
Home Office,UKBA - UK Borders Agency,29/09/2010,Grant,UKBA - UK Borders Agency,REFUGEE ACTION (G),531996-7,"25,368.50"
Home Office,UKBA - UK Borders Agency,29/09/2010,Grant,UKBA - UK Borders Agency,REFUGEE ACTION (G),531996-1,"60,309.00"
Home Office,UKBA - UK Borders Agency,29/09/2010,Grant,UKBA - UK Borders Agency,WELSH REFUGEE COUNCIL 1 (G),531996-1,"208,637.00"
Home Office,UKBA - UK Borders Agency,29/09/2010,Grant,UKBA - UK Borders Agency,MIGRANT HELPLINE (G),531996-1,"79,590.00"
Home Office,UKBA - UK Borders Agency,29/09/2010,Grant,UKBA - UK Borders Agency,REFUGEE ACTION (G),531996-8,"61,816.00"
Home Office,UKBA - UK Borders Agency,29/09/2010,Politics & Civic Affairs.Human aid & relief Sect 4,UKBA - UK Borders Agency,UNITED PROPERTY MANAGEMENT,1816245,"682,812.09"
Home Office,UKBA - UK Borders Agency,29/09/2010,Politics & Civic Affairs.Human aid & relief Sect 4,UKBA - UK Borders Agency,UNITED PROPERTY MANAGEMENT,1816246,"579,875.98"
Home Office,UKBA - UK Borders Agency,29/09/2010,IT & Telecommunications.IT & Telecommunications,UKBA - UK Borders Agency,ATOS ORIGIN IT SERVICES UK LIMITED- MEDICAL SERVICES,1813224,"239,500.25"
Home Office,UKBA - UK Borders Agency,29/09/2010,Politics & Civic Affairs.Human aid & relief Sect 4,UKBA - UK Borders Agency,UNITED PROPERTY MANAGEMENT,1816247,"217,042.52"
Home Office,UKBA - UK Borders Agency,29/09/2010,Storage & Mail Services.Messenger & Reception Services,UKBA - UK Borders Agency,"REFUGEE ACTION ( REGIONS - NW, SE & SW )",1816356,"160,887.45"
Home Office,UKBA - UK Borders Agency,29/09/2010,Politics & Civic Affairs.Human aid & relief Sect 4,UKBA - UK Borders Agency,NORTHERN IRELAND HOUSING EXEC,1816317,"151,208.76"
Home Office,UKBA - UK Borders Agency,29/09/2010,IT & Telecoms Components.Computer Equip (FA),UKBA - UK Borders Agency,ERNST AND YOUNG_001,1788249,"118,950.78"
Home Office,UKBA - UK Borders Agency,29/09/2010,IT & Telecommunications.IT & Telecommunications,UKBA - UK Borders Agency,ATOS ORIGIN IT SERVICES UK LIMITED- MEDICAL SERVICES,1813222,"73,865.20"
Home Office,UKBA - UK Borders Agency,29/09/2010,IT & Telecommunications.IT & Telecommunications,UKBA - UK Borders Agency,ATOS ORIGIN IT SERVICES UK LIMITED- MEDICAL SERVICES,1813221,"37,012.50"
Home Office,UKBA - UK Borders Agency,29/09/2010,"Editorial, Design & Graphics.Advertising-non recruit - ADMN",UKBA - UK Borders Agency,EPOLICY LTD,1767414,"25,908.75"
Home Office,UKBA - UK Borders Agency,29/09/2010,Management & Admin Serv.Overseas Posting Costs-PROG,UKBA - UK Borders Agency,PARIS APARTMENT SERVICES,1816252,"68,472.00"
Home Office,UKBA - UK Borders Agency,29/09/2010,Storage & Mail Services.Messenger & Reception Services,UKBA - UK Borders Agency,TNT UK LIMITED,1816349,"28,595.51"
Home Office,UKBA - UK Borders Agency,29/09/2010,Generators & Equip (FA).Plant & machinery (FA),UKBA - UK Borders Agency,ARQIVA LTD,1780546,"60,598.91"
Home Office,UKBA - UK Borders Agency,29/09/2010,Generators & Equip (FA).Plant & machinery (FA),UKBA - UK Borders Agency,ARQIVA LTD,1753637,"60,598.91"
Home Office,UKBA - UK Borders Agency,29/09/2010,Generators & Equip (FA).Plant & machinery (FA),UKBA - UK Borders Agency,ARQIVA LTD,1774760,"60,598.91"
Home Office,UKBA - UK Borders Agency,30/09/2010,Storage & Mail Services.Messenger & Reception Services,UKBA - UK Borders Agency,TNT UK LIMITED,1817071,"28,595.51"
Home Office,UKBA - UK Borders Agency,30/09/2010,Asylum Services.Public Expense Removals,UKBA - UK Borders Agency,CARLSON WAGONLIT TRAVEL,1817427,"212,650.00"
Home Office,UKBA - UK Borders Agency,30/09/2010,Defense & Law Enforcement.Police Liaison Officers,UKBA - UK Borders Agency,THE METROPOLITAN POLICE,1818134,"119,651.38"
Home Office,UKBA - UK Borders Agency,30/09/2010,Asylum Services.Public Expense Removals,UKBA - UK Borders Agency,CARLSON WAGONLIT TRAVEL,1817434,"39,600.00"
